{"text_format":"1","workbook":"xlsx","n_sheets":4,"sheets":["AANVRAAG","DEELNEMERSLIJST","GESTOPTE PRAKTIJKEN","BEHEER"],"not_rendered":{"charts":0,"images":0,"macros":1,"external_links":0,"defined_names":8,"comments":1,"pivot_tables":0},"unopened":[],"bounds":{"document_bytes":16777216,"sheet_cells":100000,"rows_first":2000,"rows_last":500,"rows_between":2000,"halvings":0,"cell_chars":16384,"cell_head_chars":4096},"cells_cut":0,"cells_raw":0,"read":"whole","date_system":"1900"}

{"sheet":"AANVRAAG","index":0,"n_rows":22,"n_cols":27,"rows_kept":22,"cut":false,"hidden":false,"merged":[[13,0,13,2],[14,0,14,2],[4,1,4,3],[5,1,5,3],[12,0,12,3],[6,2,6,3],[21,0,28,3],[0,0,0,3],[1,0,1,3],[20,0,20,3],[16,0,16,2],[17,0,17,2],[9,1,9,3],[10,1,10,3],[11,1,11,3],[19,0,19,3],[18,0,18,2],[15,0,15,2],[2,2,2,3],[7,1,7,3],[8,1,8,3],[3,2,3,3]]}
[{"$f":"CONCATENATE(\"Aanvraag-/wijzigingsformulier \",Aanvraagformulier,\" \",Jaar)","v":"Aanvraag-/wijzigingsformulier Praktijkmanager Wijk 2024"},null,null,null,null,null,null,null,null,null,null,null,null,null,null,null,null,null,null,null,null,null,null,null,null,null,"Tabblad beveiligen"]
["Vul de gele cellen in.\n(Gebruik uitsluitend de versie die op moment van verzending op de website staat.)"]
["Dit betreft een",null,"nieuwe aanvraag Praktijkmanager Wijk",null,null,null,null,null,null,null,null,null,null,null,null,null,null,null,null,null,null,null,null,null,null,null,"A5"]
[null,null,"wijziging Praktijkmanager Wijk"]
["Datum aanvraag\nmoet gelijk zijn aan datum verzending"]
["Datum ingang van deze\naanvraag / wijziging",{"$f":"BEHEER!C108","v":""}]
[{"$f":"IF(BEHEER!B40,\"Zijn er per datum wijziging praktijken die niet meer deelnemen?\",\"\")","v":""},{"$f":"IF(BEHEER!B40,\"ja\nnee\",\"\")","v":""},{"$f":"IF(AND(BEHEER!B92,BEHEER!B40),\"Vul gegevens niet meer deelnemende huisartsenpraktijken op tabblad GESTOPTE PRAKTIJKEN\",\"\")","v":""}]
["Naam Regionale Huisartsen Organisatie of  samenwerkingsverband + plaats en wijk"]
["AGB-code"]
["Naam contactpersoon"]
["Telefoon contactpersoon"]
["E-mail contactpersoon"]
["Vul gegevens deelnemende huisartsenpraktijken op tabblad DEELNEMERSLIJST.\nDeze worden hieronder gebruikt om het tarief te berekenen."]
["Totaal aantal patiënten (ION)",null,null,{"$f":"SUM(DEELNEMERSLIJST!E:E)","v":0}]
["Totaal aantal uur per week aan inzet Praktijkmanager Wijk"]
["De aanvrager verklaart dat de Praktijkmanager Wijk hbo bachelor diploma heeft.",null,null,{"$f":"\"      JA\"","v":"      JA"}]
["De aanvrager verklaart dat alle gegevens naar waarheid zijn ingevuld.",null,null,{"$f":"CONCATENATE(\"      \",\"JA\")","v":"      JA"}]
["De aanvrager verklaart kennis te hebben genomen van de voorwaarden.",null,null,{"$f":"CONCATENATE(\"      \",\"JA\")","v":"      JA"}]
["Kwartaaltarief per op naam ingeschreven verzekerde\n(onder voorbehoud)",null,null,{"$f":"IF(BEHEER!B25,BEHEER!B23,BEHEER!B26)","v":"Het formulier is niet volledig ingevuld."}]
["Indien alle vragen zijn beantwoord,\nverzoeken wij u om dit aanvraag-/wijzigingsformulier te mailen aan:"]
["rz.huisartsen@cz.nl"]
[{"$f":"IF(BEHEER!B25,BEHEER!A100,\"\")","v":""}]

{"sheet":"DEELNEMERSLIJST","index":1,"n_rows":200,"n_cols":27,"rows_kept":200,"cut":false,"hidden":false,"merged":[]}
["Praktijk AGB","Naam praktijk","Aantal patiënten","Ingangsdatum deelname","Rekenpatiënten",null,null,null,null,null,null,null,null,null,null,null,null,null,null,null,null,null,null,null,null,null,"Tabblad beveiligen"]
[null,null,null,null,{"$f":"IF(C2=\"\",\"\",C2)","v":""}]
[null,null,null,null,{"$f":"IF(C3=\"\",\"\",C3)","v":""},null,null,null,null,null,null,null,null,null,null,null,null,null,null,null,null,null,null,null,null,null,"A2"]
[null,null,null,null,""]
[null,null,null,null,""]
[null,null,null,null,""]
[null,null,null,null,""]
[null,null,null,null,""]
[null,null,null,null,""]
[null,null,null,null,""]
[null,null,null,null,""]
[null,null,null,null,""]
[null,null,null,null,""]
[null,null,null,null,""]
[null,null,null,null,""]
[null,null,null,null,""]
[null,null,null,null,""]
[null,null,null,null,""]
[null,null,null,null,""]
[null,null,null,null,""]
[null,null,null,null,""]
[null,null,null,null,""]
[null,null,null,null,""]
[null,null,null,null,""]
[null,null,null,null,""]
[null,null,null,null,""]
[null,null,null,null,""]
[null,null,null,null,""]
[null,null,null,null,""]
[null,null,null,null,""]
[null,null,null,null,""]
[null,null,null,null,""]
[null,null,null,null,""]
[null,null,null,null,""]
[null,null,null,null,""]
[null,null,null,null,""]
[null,null,null,null,""]
[null,null,null,null,""]
[null,null,null,null,""]
[null,null,null,null,""]
[null,null,null,null,""]
[null,null,null,null,""]
[null,null,null,null,""]
[null,null,null,null,""]
[null,null,null,null,""]
[null,null,null,null,""]
[null,null,null,null,""]
[null,null,null,null,""]
[null,null,null,null,""]
[null,null,null,null,""]
[null,null,null,null,""]
[null,null,null,null,""]
[null,null,null,null,""]
[null,null,null,null,""]
[null,null,null,null,""]
[null,null,null,null,""]
[null,null,null,null,""]
[null,null,null,null,""]
[null,null,null,null,""]
[null,null,null,null,""]
[null,null,null,null,""]
[null,null,null,null,""]
[null,null,null,null,""]
[null,null,null,null,""]
[null,null,null,null,""]
[null,null,null,null,""]
[null,null,null,null,{"$f":"IF(C67=\"\",\"\",C67)","v":""}]
[null,null,null,null,""]
[null,null,null,null,""]
[null,null,null,null,""]
[null,null,null,null,""]
[null,null,null,null,""]
[null,null,null,null,""]
[null,null,null,null,""]
[null,null,null,null,""]
[null,null,null,null,""]
[null,null,null,null,""]
[null,null,null,null,""]
[null,null,null,null,""]
[null,null,null,null,""]
[null,null,null,null,""]
[null,null,null,null,""]
[null,null,null,null,""]
[null,null,null,null,""]
[null,null,null,null,""]
[null,null,null,null,""]
[null,null,null,null,""]
[null,null,null,null,""]
[null,null,null,null,""]
[null,null,null,null,""]
[null,null,null,null,""]
[null,null,null,null,""]
[null,null,null,null,""]
[null,null,null,null,""]
[null,null,null,null,""]
[null,null,null,null,""]
[null,null,null,null,""]
[null,null,null,null,""]
[null,null,null,null,""]
[null,null,null,null,""]
[null,null,null,null,""]
[null,null,null,null,""]
[null,null,null,null,""]
[null,null,null,null,""]
[null,null,null,null,""]
[null,null,null,null,""]
[null,null,null,null,""]
[null,null,null,null,""]
[null,null,null,null,""]
[null,null,null,null,""]
[null,null,null,null,""]
[null,null,null,null,""]
[null,null,null,null,""]
[null,null,null,null,""]
[null,null,null,null,""]
[null,null,null,null,""]
[null,null,null,null,""]
[null,null,null,null,""]
[null,null,null,null,""]
[null,null,null,null,""]
[null,null,null,null,""]
[null,null,null,null,""]
[null,null,null,null,""]
[null,null,null,null,""]
[null,null,null,null,""]
[null,null,null,null,""]
[null,null,null,null,""]
[null,null,null,null,""]
[null,null,null,null,""]
[null,null,null,null,""]
[null,null,null,null,{"$f":"IF(C131=\"\",\"\",C131)","v":""}]
[null,null,null,null,""]
[null,null,null,null,""]
[null,null,null,null,""]
[null,null,null,null,""]
[null,null,null,null,""]
[null,null,null,null,""]
[null,null,null,null,""]
[null,null,null,null,""]
[null,null,null,null,""]
[null,null,null,null,""]
[null,null,null,null,""]
[null,null,null,null,""]
[null,null,null,null,""]
[null,null,null,null,""]
[null,null,null,null,""]
[null,null,null,null,""]
[null,null,null,null,""]
[null,null,null,null,""]
[null,null,null,null,""]
[null,null,null,null,""]
[null,null,null,null,""]
[null,null,null,null,""]
[null,null,null,null,""]
[null,null,null,null,""]
[null,null,null,null,""]
[null,null,null,null,""]
[null,null,null,null,""]
[null,null,null,null,""]
[null,null,null,null,""]
[null,null,null,null,""]
[null,null,null,null,""]
[null,null,null,null,""]
[null,null,null,null,""]
[null,null,null,null,""]
[null,null,null,null,""]
[null,null,null,null,""]
[null,null,null,null,""]
[null,null,null,null,""]
[null,null,null,null,""]
[null,null,null,null,""]
[null,null,null,null,""]
[null,null,null,null,""]
[null,null,null,null,""]
[null,null,null,null,""]
[null,null,null,null,""]
[null,null,null,null,""]
[null,null,null,null,""]
[null,null,null,null,""]
[null,null,null,null,""]
[null,null,null,null,""]
[null,null,null,null,""]
[null,null,null,null,""]
[null,null,null,null,""]
[null,null,null,null,""]
[null,null,null,null,""]
[null,null,null,null,""]
[null,null,null,null,""]
[null,null,null,null,""]
[null,null,null,null,""]
[null,null,null,null,""]
[null,null,null,null,""]
[null,null,null,null,""]
[null,null,null,null,""]
[null,null,null,null,{"$f":"IF(C195=\"\",\"\",C195)","v":""}]
[null,null,null,null,""]
[null,null,null,null,""]
[null,null,null,null,""]
[null,null,null,null,""]
[null,null,null,null,""]

{"sheet":"GESTOPTE PRAKTIJKEN","index":2,"n_rows":500,"n_cols":27,"rows_kept":500,"cut":false,"hidden":false,"merged":[]}
["Praktijk AGB","Naam praktijk","Einddatum deelname",null,null,null,null,null,null,null,null,null,null,null,null,null,null,null,null,null,null,null,null,null,null,null,"Tabblad beveiligen"]
[null,null,{"$f":"IFERROR(IF(AND(A2<>\"\",B2<>\"\"),AANVRAAG!$B$6-1,\"\"),\"Gelijk aan ingangsdatum wijziging.\")","v":""}]
[null,null,{"$f":"IFERROR(IF(AND(A3<>\"\",B3<>\"\"),AANVRAAG!$B$6-1,\"\"),\"Gelijk aan ingangsdatum wijziging.\")","v":""},null,null,null,null,null,null,null,null,null,null,null,null,null,null,null,null,null,null,null,null,null,null,null,"A2"]
[null,null,{"$f":"IFERROR(IF(AND(A4<>\"\",B4<>\"\"),AANVRAAG!$B$6-1,\"\"),\"Gelijk aan ingangsdatum wijziging.\")","v":""}]
[null,null,{"$f":"IFERROR(IF(AND(A5<>\"\",B5<>\"\"),AANVRAAG!$B$6-1,\"\"),\"Gelijk aan ingangsdatum wijziging.\")","v":""}]
[null,null,{"$f":"IFERROR(IF(AND(A6<>\"\",B6<>\"\"),AANVRAAG!$B$6-1,\"\"),\"Gelijk aan ingangsdatum wijziging.\")","v":""}]
[null,null,{"$f":"IFERROR(IF(AND(A7<>\"\",B7<>\"\"),AANVRAAG!$B$6-1,\"\"),\"Gelijk aan ingangsdatum wijziging.\")","v":""}]
[null,null,{"$f":"IFERROR(IF(AND(A8<>\"\",B8<>\"\"),AANVRAAG!$B$6-1,\"\"),\"Gelijk aan ingangsdatum wijziging.\")","v":""}]
[null,null,{"$f":"IFERROR(IF(AND(A9<>\"\",B9<>\"\"),AANVRAAG!$B$6-1,\"\"),\"Gelijk aan ingangsdatum wijziging.\")","v":""}]
[null,null,{"$f":"IFERROR(IF(AND(A10<>\"\",B10<>\"\"),AANVRAAG!$B$6-1,\"\"),\"Gelijk aan ingangsdatum wijziging.\")","v":""}]
[null,null,{"$f":"IFERROR(IF(AND(A11<>\"\",B11<>\"\"),AANVRAAG!$B$6-1,\"\"),\"Gelijk aan ingangsdatum wijziging.\")","v":""}]
[null,null,{"$f":"IFERROR(IF(AND(A12<>\"\",B12<>\"\"),AANVRAAG!$B$6-1,\"\"),\"Gelijk aan ingangsdatum wijziging.\")","v":""}]
[null,null,{"$f":"IFERROR(IF(AND(A13<>\"\",B13<>\"\"),AANVRAAG!$B$6-1,\"\"),\"Gelijk aan ingangsdatum wijziging.\")","v":""}]
[null,null,{"$f":"IFERROR(IF(AND(A14<>\"\",B14<>\"\"),AANVRAAG!$B$6-1,\"\"),\"Gelijk aan ingangsdatum wijziging.\")","v":""}]
[null,null,{"$f":"IFERROR(IF(AND(A15<>\"\",B15<>\"\"),AANVRAAG!$B$6-1,\"\"),\"Gelijk aan ingangsdatum wijziging.\")","v":""}]
[null,null,{"$f":"IFERROR(IF(AND(A16<>\"\",B16<>\"\"),AANVRAAG!$B$6-1,\"\"),\"Gelijk aan ingangsdatum wijziging.\")","v":""}]
[null,null,{"$f":"IFERROR(IF(AND(A17<>\"\",B17<>\"\"),AANVRAAG!$B$6-1,\"\"),\"Gelijk aan ingangsdatum wijziging.\")","v":""}]
[null,null,{"$f":"IFERROR(IF(AND(A18<>\"\",B18<>\"\"),AANVRAAG!$B$6-1,\"\"),\"Gelijk aan ingangsdatum wijziging.\")","v":""}]
[null,null,{"$f":"IFERROR(IF(AND(A19<>\"\",B19<>\"\"),AANVRAAG!$B$6-1,\"\"),\"Gelijk aan ingangsdatum wijziging.\")","v":""}]
[null,null,{"$f":"IFERROR(IF(AND(A20<>\"\",B20<>\"\"),AANVRAAG!$B$6-1,\"\"),\"Gelijk aan ingangsdatum wijziging.\")","v":""}]
[null,null,{"$f":"IFERROR(IF(AND(A21<>\"\",B21<>\"\"),AANVRAAG!$B$6-1,\"\"),\"Gelijk aan ingangsdatum wijziging.\")","v":""}]
[null,null,{"$f":"IFERROR(IF(AND(A22<>\"\",B22<>\"\"),AANVRAAG!$B$6-1,\"\"),\"Gelijk aan ingangsdatum wijziging.\")","v":""}]
[null,null,{"$f":"IFERROR(IF(AND(A23<>\"\",B23<>\"\"),AANVRAAG!$B$6-1,\"\"),\"Gelijk aan ingangsdatum wijziging.\")","v":""}]
[null,null,{"$f":"IFERROR(IF(AND(A24<>\"\",B24<>\"\"),AANVRAAG!$B$6-1,\"\"),\"Gelijk aan ingangsdatum wijziging.\")","v":""}]
[null,null,{"$f":"IFERROR(IF(AND(A25<>\"\",B25<>\"\"),AANVRAAG!$B$6-1,\"\"),\"Gelijk aan ingangsdatum wijziging.\")","v":""}]
[null,null,{"$f":"IFERROR(IF(AND(A26<>\"\",B26<>\"\"),AANVRAAG!$B$6-1,\"\"),\"Gelijk aan ingangsdatum wijziging.\")","v":""}]
[null,null,{"$f":"IFERROR(IF(AND(A27<>\"\",B27<>\"\"),AANVRAAG!$B$6-1,\"\"),\"Gelijk aan ingangsdatum wijziging.\")","v":""}]
[null,null,{"$f":"IFERROR(IF(AND(A28<>\"\",B28<>\"\"),AANVRAAG!$B$6-1,\"\"),\"Gelijk aan ingangsdatum wijziging.\")","v":""}]
[null,null,{"$f":"IFERROR(IF(AND(A29<>\"\",B29<>\"\"),AANVRAAG!$B$6-1,\"\"),\"Gelijk aan ingangsdatum wijziging.\")","v":""}]
[null,null,{"$f":"IFERROR(IF(AND(A30<>\"\",B30<>\"\"),AANVRAAG!$B$6-1,\"\"),\"Gelijk aan ingangsdatum wijziging.\")","v":""}]
[null,null,{"$f":"IFERROR(IF(AND(A31<>\"\",B31<>\"\"),AANVRAAG!$B$6-1,\"\"),\"Gelijk aan ingangsdatum wijziging.\")","v":""}]
[null,null,{"$f":"IFERROR(IF(AND(A32<>\"\",B32<>\"\"),AANVRAAG!$B$6-1,\"\"),\"Gelijk aan ingangsdatum wijziging.\")","v":""}]
[null,null,{"$f":"IFERROR(IF(AND(A33<>\"\",B33<>\"\"),AANVRAAG!$B$6-1,\"\"),\"Gelijk aan ingangsdatum wijziging.\")","v":""}]
[null,null,{"$f":"IFERROR(IF(AND(A34<>\"\",B34<>\"\"),AANVRAAG!$B$6-1,\"\"),\"Gelijk aan ingangsdatum wijziging.\")","v":""}]
[null,null,{"$f":"IFERROR(IF(AND(A35<>\"\",B35<>\"\"),AANVRAAG!$B$6-1,\"\"),\"Gelijk aan ingangsdatum wijziging.\")","v":""}]
[null,null,{"$f":"IFERROR(IF(AND(A36<>\"\",B36<>\"\"),AANVRAAG!$B$6-1,\"\"),\"Gelijk aan ingangsdatum wijziging.\")","v":""}]
[null,null,{"$f":"IFERROR(IF(AND(A37<>\"\",B37<>\"\"),AANVRAAG!$B$6-1,\"\"),\"Gelijk aan ingangsdatum wijziging.\")","v":""}]
[null,null,{"$f":"IFERROR(IF(AND(A38<>\"\",B38<>\"\"),AANVRAAG!$B$6-1,\"\"),\"Gelijk aan ingangsdatum wijziging.\")","v":""}]
[null,null,{"$f":"IFERROR(IF(AND(A39<>\"\",B39<>\"\"),AANVRAAG!$B$6-1,\"\"),\"Gelijk aan ingangsdatum wijziging.\")","v":""}]
[null,null,{"$f":"IFERROR(IF(AND(A40<>\"\",B40<>\"\"),AANVRAAG!$B$6-1,\"\"),\"Gelijk aan ingangsdatum wijziging.\")","v":""}]
[null,null,{"$f":"IFERROR(IF(AND(A41<>\"\",B41<>\"\"),AANVRAAG!$B$6-1,\"\"),\"Gelijk aan ingangsdatum wijziging.\")","v":""}]
[null,null,{"$f":"IFERROR(IF(AND(A42<>\"\",B42<>\"\"),AANVRAAG!$B$6-1,\"\"),\"Gelijk aan ingangsdatum wijziging.\")","v":""}]
[null,null,{"$f":"IFERROR(IF(AND(A43<>\"\",B43<>\"\"),AANVRAAG!$B$6-1,\"\"),\"Gelijk aan ingangsdatum wijziging.\")","v":""}]
[null,null,{"$f":"IFERROR(IF(AND(A44<>\"\",B44<>\"\"),AANVRAAG!$B$6-1,\"\"),\"Gelijk aan ingangsdatum wijziging.\")","v":""}]
[null,null,{"$f":"IFERROR(IF(AND(A45<>\"\",B45<>\"\"),AANVRAAG!$B$6-1,\"\"),\"Gelijk aan ingangsdatum wijziging.\")","v":""}]
[null,null,{"$f":"IFERROR(IF(AND(A46<>\"\",B46<>\"\"),AANVRAAG!$B$6-1,\"\"),\"Gelijk aan ingangsdatum wijziging.\")","v":""}]
[null,null,{"$f":"IFERROR(IF(AND(A47<>\"\",B47<>\"\"),AANVRAAG!$B$6-1,\"\"),\"Gelijk aan ingangsdatum wijziging.\")","v":""}]
[null,null,{"$f":"IFERROR(IF(AND(A48<>\"\",B48<>\"\"),AANVRAAG!$B$6-1,\"\"),\"Gelijk aan ingangsdatum wijziging.\")","v":""}]
[null,null,{"$f":"IFERROR(IF(AND(A49<>\"\",B49<>\"\"),AANVRAAG!$B$6-1,\"\"),\"Gelijk aan ingangsdatum wijziging.\")","v":""}]
[null,null,{"$f":"IFERROR(IF(AND(A50<>\"\",B50<>\"\"),AANVRAAG!$B$6-1,\"\"),\"Gelijk aan ingangsdatum wijziging.\")","v":""}]
[null,null,{"$f":"IFERROR(IF(AND(A51<>\"\",B51<>\"\"),AANVRAAG!$B$6-1,\"\"),\"Gelijk aan ingangsdatum wijziging.\")","v":""}]
[null,null,{"$f":"IFERROR(IF(AND(A52<>\"\",B52<>\"\"),AANVRAAG!$B$6-1,\"\"),\"Gelijk aan ingangsdatum wijziging.\")","v":""}]
[null,null,{"$f":"IFERROR(IF(AND(A53<>\"\",B53<>\"\"),AANVRAAG!$B$6-1,\"\"),\"Gelijk aan ingangsdatum wijziging.\")","v":""}]
[null,null,{"$f":"IFERROR(IF(AND(A54<>\"\",B54<>\"\"),AANVRAAG!$B$6-1,\"\"),\"Gelijk aan ingangsdatum wijziging.\")","v":""}]
[null,null,{"$f":"IFERROR(IF(AND(A55<>\"\",B55<>\"\"),AANVRAAG!$B$6-1,\"\"),\"Gelijk aan ingangsdatum wijziging.\")","v":""}]
[null,null,{"$f":"IFERROR(IF(AND(A56<>\"\",B56<>\"\"),AANVRAAG!$B$6-1,\"\"),\"Gelijk aan ingangsdatum wijziging.\")","v":""}]
[null,null,{"$f":"IFERROR(IF(AND(A57<>\"\",B57<>\"\"),AANVRAAG!$B$6-1,\"\"),\"Gelijk aan ingangsdatum wijziging.\")","v":""}]
[null,null,{"$f":"IFERROR(IF(AND(A58<>\"\",B58<>\"\"),AANVRAAG!$B$6-1,\"\"),\"Gelijk aan ingangsdatum wijziging.\")","v":""}]
[null,null,{"$f":"IFERROR(IF(AND(A59<>\"\",B59<>\"\"),AANVRAAG!$B$6-1,\"\"),\"Gelijk aan ingangsdatum wijziging.\")","v":""}]
[null,null,{"$f":"IFERROR(IF(AND(A60<>\"\",B60<>\"\"),AANVRAAG!$B$6-1,\"\"),\"Gelijk aan ingangsdatum wijziging.\")","v":""}]
[null,null,{"$f":"IFERROR(IF(AND(A61<>\"\",B61<>\"\"),AANVRAAG!$B$6-1,\"\"),\"Gelijk aan ingangsdatum wijziging.\")","v":""}]
[null,null,{"$f":"IFERROR(IF(AND(A62<>\"\",B62<>\"\"),AANVRAAG!$B$6-1,\"\"),\"Gelijk aan ingangsdatum wijziging.\")","v":""}]
[null,null,{"$f":"IFERROR(IF(AND(A63<>\"\",B63<>\"\"),AANVRAAG!$B$6-1,\"\"),\"Gelijk aan ingangsdatum wijziging.\")","v":""}]
[null,null,{"$f":"IFERROR(IF(AND(A64<>\"\",B64<>\"\"),AANVRAAG!$B$6-1,\"\"),\"Gelijk aan ingangsdatum wijziging.\")","v":""}]
[null,null,{"$f":"IFERROR(IF(AND(A65<>\"\",B65<>\"\"),AANVRAAG!$B$6-1,\"\"),\"Gelijk aan ingangsdatum wijziging.\")","v":""}]
[null,null,{"$f":"IFERROR(IF(AND(A66<>\"\",B66<>\"\"),AANVRAAG!$B$6-1,\"\"),\"Gelijk aan ingangsdatum wijziging.\")","v":""}]
[null,null,{"$f":"IFERROR(IF(AND(A67<>\"\",B67<>\"\"),AANVRAAG!$B$6-1,\"\"),\"Gelijk aan ingangsdatum wijziging.\")","v":""}]
[null,null,{"$f":"IFERROR(IF(AND(A68<>\"\",B68<>\"\"),AANVRAAG!$B$6-1,\"\"),\"Gelijk aan ingangsdatum wijziging.\")","v":""}]
[null,null,{"$f":"IFERROR(IF(AND(A69<>\"\",B69<>\"\"),AANVRAAG!$B$6-1,\"\"),\"Gelijk aan ingangsdatum wijziging.\")","v":""}]
[null,null,{"$f":"IFERROR(IF(AND(A70<>\"\",B70<>\"\"),AANVRAAG!$B$6-1,\"\"),\"Gelijk aan ingangsdatum wijziging.\")","v":""}]
[null,null,{"$f":"IFERROR(IF(AND(A71<>\"\",B71<>\"\"),AANVRAAG!$B$6-1,\"\"),\"Gelijk aan ingangsdatum wijziging.\")","v":""}]
[null,null,{"$f":"IFERROR(IF(AND(A72<>\"\",B72<>\"\"),AANVRAAG!$B$6-1,\"\"),\"Gelijk aan ingangsdatum wijziging.\")","v":""}]
[null,null,{"$f":"IFERROR(IF(AND(A73<>\"\",B73<>\"\"),AANVRAAG!$B$6-1,\"\"),\"Gelijk aan ingangsdatum wijziging.\")","v":""}]
[null,null,{"$f":"IFERROR(IF(AND(A74<>\"\",B74<>\"\"),AANVRAAG!$B$6-1,\"\"),\"Gelijk aan ingangsdatum wijziging.\")","v":""}]
[null,null,{"$f":"IFERROR(IF(AND(A75<>\"\",B75<>\"\"),AANVRAAG!$B$6-1,\"\"),\"Gelijk aan ingangsdatum wijziging.\")","v":""}]
[null,null,{"$f":"IFERROR(IF(AND(A76<>\"\",B76<>\"\"),AANVRAAG!$B$6-1,\"\"),\"Gelijk aan ingangsdatum wijziging.\")","v":""}]
[null,null,{"$f":"IFERROR(IF(AND(A77<>\"\",B77<>\"\"),AANVRAAG!$B$6-1,\"\"),\"Gelijk aan ingangsdatum wijziging.\")","v":""}]
[null,null,{"$f":"IFERROR(IF(AND(A78<>\"\",B78<>\"\"),AANVRAAG!$B$6-1,\"\"),\"Gelijk aan ingangsdatum wijziging.\")","v":""}]
[null,null,{"$f":"IFERROR(IF(AND(A79<>\"\",B79<>\"\"),AANVRAAG!$B$6-1,\"\"),\"Gelijk aan ingangsdatum wijziging.\")","v":""}]
[null,null,{"$f":"IFERROR(IF(AND(A80<>\"\",B80<>\"\"),AANVRAAG!$B$6-1,\"\"),\"Gelijk aan ingangsdatum wijziging.\")","v":""}]
[null,null,{"$f":"IFERROR(IF(AND(A81<>\"\",B81<>\"\"),AANVRAAG!$B$6-1,\"\"),\"Gelijk aan ingangsdatum wijziging.\")","v":""}]
[null,null,{"$f":"IFERROR(IF(AND(A82<>\"\",B82<>\"\"),AANVRAAG!$B$6-1,\"\"),\"Gelijk aan ingangsdatum wijziging.\")","v":""}]
[null,null,{"$f":"IFERROR(IF(AND(A83<>\"\",B83<>\"\"),AANVRAAG!$B$6-1,\"\"),\"Gelijk aan ingangsdatum wijziging.\")","v":""}]
[null,null,{"$f":"IFERROR(IF(AND(A84<>\"\",B84<>\"\"),AANVRAAG!$B$6-1,\"\"),\"Gelijk aan ingangsdatum wijziging.\")","v":""}]
[null,null,{"$f":"IFERROR(IF(AND(A85<>\"\",B85<>\"\"),AANVRAAG!$B$6-1,\"\"),\"Gelijk aan ingangsdatum wijziging.\")","v":""}]
[null,null,{"$f":"IFERROR(IF(AND(A86<>\"\",B86<>\"\"),AANVRAAG!$B$6-1,\"\"),\"Gelijk aan ingangsdatum wijziging.\")","v":""}]
[null,null,{"$f":"IFERROR(IF(AND(A87<>\"\",B87<>\"\"),AANVRAAG!$B$6-1,\"\"),\"Gelijk aan ingangsdatum wijziging.\")","v":""}]
[null,null,{"$f":"IFERROR(IF(AND(A88<>\"\",B88<>\"\"),AANVRAAG!$B$6-1,\"\"),\"Gelijk aan ingangsdatum wijziging.\")","v":""}]
[null,null,{"$f":"IFERROR(IF(AND(A89<>\"\",B89<>\"\"),AANVRAAG!$B$6-1,\"\"),\"Gelijk aan ingangsdatum wijziging.\")","v":""}]
[null,null,{"$f":"IFERROR(IF(AND(A90<>\"\",B90<>\"\"),AANVRAAG!$B$6-1,\"\"),\"Gelijk aan ingangsdatum wijziging.\")","v":""}]
[null,null,{"$f":"IFERROR(IF(AND(A91<>\"\",B91<>\"\"),AANVRAAG!$B$6-1,\"\"),\"Gelijk aan ingangsdatum wijziging.\")","v":""}]
[null,null,{"$f":"IFERROR(IF(AND(A92<>\"\",B92<>\"\"),AANVRAAG!$B$6-1,\"\"),\"Gelijk aan ingangsdatum wijziging.\")","v":""}]
[null,null,{"$f":"IFERROR(IF(AND(A93<>\"\",B93<>\"\"),AANVRAAG!$B$6-1,\"\"),\"Gelijk aan ingangsdatum wijziging.\")","v":""}]
[null,null,{"$f":"IFERROR(IF(AND(A94<>\"\",B94<>\"\"),AANVRAAG!$B$6-1,\"\"),\"Gelijk aan ingangsdatum wijziging.\")","v":""}]
[null,null,{"$f":"IFERROR(IF(AND(A95<>\"\",B95<>\"\"),AANVRAAG!$B$6-1,\"\"),\"Gelijk aan ingangsdatum wijziging.\")","v":""}]
[null,null,{"$f":"IFERROR(IF(AND(A96<>\"\",B96<>\"\"),AANVRAAG!$B$6-1,\"\"),\"Gelijk aan ingangsdatum wijziging.\")","v":""}]
[null,null,{"$f":"IFERROR(IF(AND(A97<>\"\",B97<>\"\"),AANVRAAG!$B$6-1,\"\"),\"Gelijk aan ingangsdatum wijziging.\")","v":""}]
[null,null,{"$f":"IFERROR(IF(AND(A98<>\"\",B98<>\"\"),AANVRAAG!$B$6-1,\"\"),\"Gelijk aan ingangsdatum wijziging.\")","v":""}]
[null,null,{"$f":"IFERROR(IF(AND(A99<>\"\",B99<>\"\"),AANVRAAG!$B$6-1,\"\"),\"Gelijk aan ingangsdatum wijziging.\")","v":""}]
[null,null,{"$f":"IFERROR(IF(AND(A100<>\"\",B100<>\"\"),AANVRAAG!$B$6-1,\"\"),\"Gelijk aan ingangsdatum wijziging.\")","v":""}]
[null,null,{"$f":"IFERROR(IF(AND(A101<>\"\",B101<>\"\"),AANVRAAG!$B$6-1,\"\"),\"Gelijk aan ingangsdatum wijziging.\")","v":""}]
[null,null,{"$f":"IFERROR(IF(AND(A102<>\"\",B102<>\"\"),AANVRAAG!$B$6-1,\"\"),\"Gelijk aan ingangsdatum wijziging.\")","v":""}]
[null,null,{"$f":"IFERROR(IF(AND(A103<>\"\",B103<>\"\"),AANVRAAG!$B$6-1,\"\"),\"Gelijk aan ingangsdatum wijziging.\")","v":""}]
[null,null,{"$f":"IFERROR(IF(AND(A104<>\"\",B104<>\"\"),AANVRAAG!$B$6-1,\"\"),\"Gelijk aan ingangsdatum wijziging.\")","v":""}]
[null,null,{"$f":"IFERROR(IF(AND(A105<>\"\",B105<>\"\"),AANVRAAG!$B$6-1,\"\"),\"Gelijk aan ingangsdatum wijziging.\")","v":""}]
[null,null,{"$f":"IFERROR(IF(AND(A106<>\"\",B106<>\"\"),AANVRAAG!$B$6-1,\"\"),\"Gelijk aan ingangsdatum wijziging.\")","v":""}]
[null,null,{"$f":"IFERROR(IF(AND(A107<>\"\",B107<>\"\"),AANVRAAG!$B$6-1,\"\"),\"Gelijk aan ingangsdatum wijziging.\")","v":""}]
[null,null,{"$f":"IFERROR(IF(AND(A108<>\"\",B108<>\"\"),AANVRAAG!$B$6-1,\"\"),\"Gelijk aan ingangsdatum wijziging.\")","v":""}]
[null,null,{"$f":"IFERROR(IF(AND(A109<>\"\",B109<>\"\"),AANVRAAG!$B$6-1,\"\"),\"Gelijk aan ingangsdatum wijziging.\")","v":""}]
[null,null,{"$f":"IFERROR(IF(AND(A110<>\"\",B110<>\"\"),AANVRAAG!$B$6-1,\"\"),\"Gelijk aan ingangsdatum wijziging.\")","v":""}]
[null,null,{"$f":"IFERROR(IF(AND(A111<>\"\",B111<>\"\"),AANVRAAG!$B$6-1,\"\"),\"Gelijk aan ingangsdatum wijziging.\")","v":""}]
[null,null,{"$f":"IFERROR(IF(AND(A112<>\"\",B112<>\"\"),AANVRAAG!$B$6-1,\"\"),\"Gelijk aan ingangsdatum wijziging.\")","v":""}]
[null,null,{"$f":"IFERROR(IF(AND(A113<>\"\",B113<>\"\"),AANVRAAG!$B$6-1,\"\"),\"Gelijk aan ingangsdatum wijziging.\")","v":""}]
[null,null,{"$f":"IFERROR(IF(AND(A114<>\"\",B114<>\"\"),AANVRAAG!$B$6-1,\"\"),\"Gelijk aan ingangsdatum wijziging.\")","v":""}]
[null,null,{"$f":"IFERROR(IF(AND(A115<>\"\",B115<>\"\"),AANVRAAG!$B$6-1,\"\"),\"Gelijk aan ingangsdatum wijziging.\")","v":""}]
[null,null,{"$f":"IFERROR(IF(AND(A116<>\"\",B116<>\"\"),AANVRAAG!$B$6-1,\"\"),\"Gelijk aan ingangsdatum wijziging.\")","v":""}]
[null,null,{"$f":"IFERROR(IF(AND(A117<>\"\",B117<>\"\"),AANVRAAG!$B$6-1,\"\"),\"Gelijk aan ingangsdatum wijziging.\")","v":""}]
[null,null,{"$f":"IFERROR(IF(AND(A118<>\"\",B118<>\"\"),AANVRAAG!$B$6-1,\"\"),\"Gelijk aan ingangsdatum wijziging.\")","v":""}]
[null,null,{"$f":"IFERROR(IF(AND(A119<>\"\",B119<>\"\"),AANVRAAG!$B$6-1,\"\"),\"Gelijk aan ingangsdatum wijziging.\")","v":""}]
[null,null,{"$f":"IFERROR(IF(AND(A120<>\"\",B120<>\"\"),AANVRAAG!$B$6-1,\"\"),\"Gelijk aan ingangsdatum wijziging.\")","v":""}]
[null,null,{"$f":"IFERROR(IF(AND(A121<>\"\",B121<>\"\"),AANVRAAG!$B$6-1,\"\"),\"Gelijk aan ingangsdatum wijziging.\")","v":""}]
[null,null,{"$f":"IFERROR(IF(AND(A122<>\"\",B122<>\"\"),AANVRAAG!$B$6-1,\"\"),\"Gelijk aan ingangsdatum wijziging.\")","v":""}]
[null,null,{"$f":"IFERROR(IF(AND(A123<>\"\",B123<>\"\"),AANVRAAG!$B$6-1,\"\"),\"Gelijk aan ingangsdatum wijziging.\")","v":""}]
[null,null,{"$f":"IFERROR(IF(AND(A124<>\"\",B124<>\"\"),AANVRAAG!$B$6-1,\"\"),\"Gelijk aan ingangsdatum wijziging.\")","v":""}]
[null,null,{"$f":"IFERROR(IF(AND(A125<>\"\",B125<>\"\"),AANVRAAG!$B$6-1,\"\"),\"Gelijk aan ingangsdatum wijziging.\")","v":""}]
[null,null,{"$f":"IFERROR(IF(AND(A126<>\"\",B126<>\"\"),AANVRAAG!$B$6-1,\"\"),\"Gelijk aan ingangsdatum wijziging.\")","v":""}]
[null,null,{"$f":"IFERROR(IF(AND(A127<>\"\",B127<>\"\"),AANVRAAG!$B$6-1,\"\"),\"Gelijk aan ingangsdatum wijziging.\")","v":""}]
[null,null,{"$f":"IFERROR(IF(AND(A128<>\"\",B128<>\"\"),AANVRAAG!$B$6-1,\"\"),\"Gelijk aan ingangsdatum wijziging.\")","v":""}]
[null,null,{"$f":"IFERROR(IF(AND(A129<>\"\",B129<>\"\"),AANVRAAG!$B$6-1,\"\"),\"Gelijk aan ingangsdatum wijziging.\")","v":""}]
[null,null,{"$f":"IFERROR(IF(AND(A130<>\"\",B130<>\"\"),AANVRAAG!$B$6-1,\"\"),\"Gelijk aan ingangsdatum wijziging.\")","v":""}]
[null,null,{"$f":"IFERROR(IF(AND(A131<>\"\",B131<>\"\"),AANVRAAG!$B$6-1,\"\"),\"Gelijk aan ingangsdatum wijziging.\")","v":""}]
[null,null,{"$f":"IFERROR(IF(AND(A132<>\"\",B132<>\"\"),AANVRAAG!$B$6-1,\"\"),\"Gelijk aan ingangsdatum wijziging.\")","v":""}]
[null,null,{"$f":"IFERROR(IF(AND(A133<>\"\",B133<>\"\"),AANVRAAG!$B$6-1,\"\"),\"Gelijk aan ingangsdatum wijziging.\")","v":""}]
[null,null,{"$f":"IFERROR(IF(AND(A134<>\"\",B134<>\"\"),AANVRAAG!$B$6-1,\"\"),\"Gelijk aan ingangsdatum wijziging.\")","v":""}]
[null,null,{"$f":"IFERROR(IF(AND(A135<>\"\",B135<>\"\"),AANVRAAG!$B$6-1,\"\"),\"Gelijk aan ingangsdatum wijziging.\")","v":""}]
[null,null,{"$f":"IFERROR(IF(AND(A136<>\"\",B136<>\"\"),AANVRAAG!$B$6-1,\"\"),\"Gelijk aan ingangsdatum wijziging.\")","v":""}]
[null,null,{"$f":"IFERROR(IF(AND(A137<>\"\",B137<>\"\"),AANVRAAG!$B$6-1,\"\"),\"Gelijk aan ingangsdatum wijziging.\")","v":""}]
[null,null,{"$f":"IFERROR(IF(AND(A138<>\"\",B138<>\"\"),AANVRAAG!$B$6-1,\"\"),\"Gelijk aan ingangsdatum wijziging.\")","v":""}]
[null,null,{"$f":"IFERROR(IF(AND(A139<>\"\",B139<>\"\"),AANVRAAG!$B$6-1,\"\"),\"Gelijk aan ingangsdatum wijziging.\")","v":""}]
[null,null,{"$f":"IFERROR(IF(AND(A140<>\"\",B140<>\"\"),AANVRAAG!$B$6-1,\"\"),\"Gelijk aan ingangsdatum wijziging.\")","v":""}]
[null,null,{"$f":"IFERROR(IF(AND(A141<>\"\",B141<>\"\"),AANVRAAG!$B$6-1,\"\"),\"Gelijk aan ingangsdatum wijziging.\")","v":""}]
[null,null,{"$f":"IFERROR(IF(AND(A142<>\"\",B142<>\"\"),AANVRAAG!$B$6-1,\"\"),\"Gelijk aan ingangsdatum wijziging.\")","v":""}]
[null,null,{"$f":"IFERROR(IF(AND(A143<>\"\",B143<>\"\"),AANVRAAG!$B$6-1,\"\"),\"Gelijk aan ingangsdatum wijziging.\")","v":""}]
[null,null,{"$f":"IFERROR(IF(AND(A144<>\"\",B144<>\"\"),AANVRAAG!$B$6-1,\"\"),\"Gelijk aan ingangsdatum wijziging.\")","v":""}]
[null,null,{"$f":"IFERROR(IF(AND(A145<>\"\",B145<>\"\"),AANVRAAG!$B$6-1,\"\"),\"Gelijk aan ingangsdatum wijziging.\")","v":""}]
[null,null,{"$f":"IFERROR(IF(AND(A146<>\"\",B146<>\"\"),AANVRAAG!$B$6-1,\"\"),\"Gelijk aan ingangsdatum wijziging.\")","v":""}]
[null,null,{"$f":"IFERROR(IF(AND(A147<>\"\",B147<>\"\"),AANVRAAG!$B$6-1,\"\"),\"Gelijk aan ingangsdatum wijziging.\")","v":""}]
[null,null,{"$f":"IFERROR(IF(AND(A148<>\"\",B148<>\"\"),AANVRAAG!$B$6-1,\"\"),\"Gelijk aan ingangsdatum wijziging.\")","v":""}]
[null,null,{"$f":"IFERROR(IF(AND(A149<>\"\",B149<>\"\"),AANVRAAG!$B$6-1,\"\"),\"Gelijk aan ingangsdatum wijziging.\")","v":""}]
[null,null,{"$f":"IFERROR(IF(AND(A150<>\"\",B150<>\"\"),AANVRAAG!$B$6-1,\"\"),\"Gelijk aan ingangsdatum wijziging.\")","v":""}]
[null,null,{"$f":"IFERROR(IF(AND(A151<>\"\",B151<>\"\"),AANVRAAG!$B$6-1,\"\"),\"Gelijk aan ingangsdatum wijziging.\")","v":""}]
[null,null,{"$f":"IFERROR(IF(AND(A152<>\"\",B152<>\"\"),AANVRAAG!$B$6-1,\"\"),\"Gelijk aan ingangsdatum wijziging.\")","v":""}]
[null,null,{"$f":"IFERROR(IF(AND(A153<>\"\",B153<>\"\"),AANVRAAG!$B$6-1,\"\"),\"Gelijk aan ingangsdatum wijziging.\")","v":""}]
[null,null,{"$f":"IFERROR(IF(AND(A154<>\"\",B154<>\"\"),AANVRAAG!$B$6-1,\"\"),\"Gelijk aan ingangsdatum wijziging.\")","v":""}]
[null,null,{"$f":"IFERROR(IF(AND(A155<>\"\",B155<>\"\"),AANVRAAG!$B$6-1,\"\"),\"Gelijk aan ingangsdatum wijziging.\")","v":""}]
[null,null,{"$f":"IFERROR(IF(AND(A156<>\"\",B156<>\"\"),AANVRAAG!$B$6-1,\"\"),\"Gelijk aan ingangsdatum wijziging.\")","v":""}]
[null,null,{"$f":"IFERROR(IF(AND(A157<>\"\",B157<>\"\"),AANVRAAG!$B$6-1,\"\"),\"Gelijk aan ingangsdatum wijziging.\")","v":""}]
[null,null,{"$f":"IFERROR(IF(AND(A158<>\"\",B158<>\"\"),AANVRAAG!$B$6-1,\"\"),\"Gelijk aan ingangsdatum wijziging.\")","v":""}]
[null,null,{"$f":"IFERROR(IF(AND(A159<>\"\",B159<>\"\"),AANVRAAG!$B$6-1,\"\"),\"Gelijk aan ingangsdatum wijziging.\")","v":""}]
[null,null,{"$f":"IFERROR(IF(AND(A160<>\"\",B160<>\"\"),AANVRAAG!$B$6-1,\"\"),\"Gelijk aan ingangsdatum wijziging.\")","v":""}]
[null,null,{"$f":"IFERROR(IF(AND(A161<>\"\",B161<>\"\"),AANVRAAG!$B$6-1,\"\"),\"Gelijk aan ingangsdatum wijziging.\")","v":""}]
[null,null,{"$f":"IFERROR(IF(AND(A162<>\"\",B162<>\"\"),AANVRAAG!$B$6-1,\"\"),\"Gelijk aan ingangsdatum wijziging.\")","v":""}]
[null,null,{"$f":"IFERROR(IF(AND(A163<>\"\",B163<>\"\"),AANVRAAG!$B$6-1,\"\"),\"Gelijk aan ingangsdatum wijziging.\")","v":""}]
[null,null,{"$f":"IFERROR(IF(AND(A164<>\"\",B164<>\"\"),AANVRAAG!$B$6-1,\"\"),\"Gelijk aan ingangsdatum wijziging.\")","v":""}]
[null,null,{"$f":"IFERROR(IF(AND(A165<>\"\",B165<>\"\"),AANVRAAG!$B$6-1,\"\"),\"Gelijk aan ingangsdatum wijziging.\")","v":""}]
[null,null,{"$f":"IFERROR(IF(AND(A166<>\"\",B166<>\"\"),AANVRAAG!$B$6-1,\"\"),\"Gelijk aan ingangsdatum wijziging.\")","v":""}]
[null,null,{"$f":"IFERROR(IF(AND(A167<>\"\",B167<>\"\"),AANVRAAG!$B$6-1,\"\"),\"Gelijk aan ingangsdatum wijziging.\")","v":""}]
[null,null,{"$f":"IFERROR(IF(AND(A168<>\"\",B168<>\"\"),AANVRAAG!$B$6-1,\"\"),\"Gelijk aan ingangsdatum wijziging.\")","v":""}]
[null,null,{"$f":"IFERROR(IF(AND(A169<>\"\",B169<>\"\"),AANVRAAG!$B$6-1,\"\"),\"Gelijk aan ingangsdatum wijziging.\")","v":""}]
[null,null,{"$f":"IFERROR(IF(AND(A170<>\"\",B170<>\"\"),AANVRAAG!$B$6-1,\"\"),\"Gelijk aan ingangsdatum wijziging.\")","v":""}]
[null,null,{"$f":"IFERROR(IF(AND(A171<>\"\",B171<>\"\"),AANVRAAG!$B$6-1,\"\"),\"Gelijk aan ingangsdatum wijziging.\")","v":""}]
[null,null,{"$f":"IFERROR(IF(AND(A172<>\"\",B172<>\"\"),AANVRAAG!$B$6-1,\"\"),\"Gelijk aan ingangsdatum wijziging.\")","v":""}]
[null,null,{"$f":"IFERROR(IF(AND(A173<>\"\",B173<>\"\"),AANVRAAG!$B$6-1,\"\"),\"Gelijk aan ingangsdatum wijziging.\")","v":""}]
[null,null,{"$f":"IFERROR(IF(AND(A174<>\"\",B174<>\"\"),AANVRAAG!$B$6-1,\"\"),\"Gelijk aan ingangsdatum wijziging.\")","v":""}]
[null,null,{"$f":"IFERROR(IF(AND(A175<>\"\",B175<>\"\"),AANVRAAG!$B$6-1,\"\"),\"Gelijk aan ingangsdatum wijziging.\")","v":""}]
[null,null,{"$f":"IFERROR(IF(AND(A176<>\"\",B176<>\"\"),AANVRAAG!$B$6-1,\"\"),\"Gelijk aan ingangsdatum wijziging.\")","v":""}]
[null,null,{"$f":"IFERROR(IF(AND(A177<>\"\",B177<>\"\"),AANVRAAG!$B$6-1,\"\"),\"Gelijk aan ingangsdatum wijziging.\")","v":""}]
[null,null,{"$f":"IFERROR(IF(AND(A178<>\"\",B178<>\"\"),AANVRAAG!$B$6-1,\"\"),\"Gelijk aan ingangsdatum wijziging.\")","v":""}]
[null,null,{"$f":"IFERROR(IF(AND(A179<>\"\",B179<>\"\"),AANVRAAG!$B$6-1,\"\"),\"Gelijk aan ingangsdatum wijziging.\")","v":""}]
[null,null,{"$f":"IFERROR(IF(AND(A180<>\"\",B180<>\"\"),AANVRAAG!$B$6-1,\"\"),\"Gelijk aan ingangsdatum wijziging.\")","v":""}]
[null,null,{"$f":"IFERROR(IF(AND(A181<>\"\",B181<>\"\"),AANVRAAG!$B$6-1,\"\"),\"Gelijk aan ingangsdatum wijziging.\")","v":""}]
[null,null,{"$f":"IFERROR(IF(AND(A182<>\"\",B182<>\"\"),AANVRAAG!$B$6-1,\"\"),\"Gelijk aan ingangsdatum wijziging.\")","v":""}]
[null,null,{"$f":"IFERROR(IF(AND(A183<>\"\",B183<>\"\"),AANVRAAG!$B$6-1,\"\"),\"Gelijk aan ingangsdatum wijziging.\")","v":""}]
[null,null,{"$f":"IFERROR(IF(AND(A184<>\"\",B184<>\"\"),AANVRAAG!$B$6-1,\"\"),\"Gelijk aan ingangsdatum wijziging.\")","v":""}]
[null,null,{"$f":"IFERROR(IF(AND(A185<>\"\",B185<>\"\"),AANVRAAG!$B$6-1,\"\"),\"Gelijk aan ingangsdatum wijziging.\")","v":""}]
[null,null,{"$f":"IFERROR(IF(AND(A186<>\"\",B186<>\"\"),AANVRAAG!$B$6-1,\"\"),\"Gelijk aan ingangsdatum wijziging.\")","v":""}]
[null,null,{"$f":"IFERROR(IF(AND(A187<>\"\",B187<>\"\"),AANVRAAG!$B$6-1,\"\"),\"Gelijk aan ingangsdatum wijziging.\")","v":""}]
[null,null,{"$f":"IFERROR(IF(AND(A188<>\"\",B188<>\"\"),AANVRAAG!$B$6-1,\"\"),\"Gelijk aan ingangsdatum wijziging.\")","v":""}]
[null,null,{"$f":"IFERROR(IF(AND(A189<>\"\",B189<>\"\"),AANVRAAG!$B$6-1,\"\"),\"Gelijk aan ingangsdatum wijziging.\")","v":""}]
[null,null,{"$f":"IFERROR(IF(AND(A190<>\"\",B190<>\"\"),AANVRAAG!$B$6-1,\"\"),\"Gelijk aan ingangsdatum wijziging.\")","v":""}]
[null,null,{"$f":"IFERROR(IF(AND(A191<>\"\",B191<>\"\"),AANVRAAG!$B$6-1,\"\"),\"Gelijk aan ingangsdatum wijziging.\")","v":""}]
[null,null,{"$f":"IFERROR(IF(AND(A192<>\"\",B192<>\"\"),AANVRAAG!$B$6-1,\"\"),\"Gelijk aan ingangsdatum wijziging.\")","v":""}]
[null,null,{"$f":"IFERROR(IF(AND(A193<>\"\",B193<>\"\"),AANVRAAG!$B$6-1,\"\"),\"Gelijk aan ingangsdatum wijziging.\")","v":""}]
[null,null,{"$f":"IFERROR(IF(AND(A194<>\"\",B194<>\"\"),AANVRAAG!$B$6-1,\"\"),\"Gelijk aan ingangsdatum wijziging.\")","v":""}]
[null,null,{"$f":"IFERROR(IF(AND(A195<>\"\",B195<>\"\"),AANVRAAG!$B$6-1,\"\"),\"Gelijk aan ingangsdatum wijziging.\")","v":""}]
[null,null,{"$f":"IFERROR(IF(AND(A196<>\"\",B196<>\"\"),AANVRAAG!$B$6-1,\"\"),\"Gelijk aan ingangsdatum wijziging.\")","v":""}]
[null,null,{"$f":"IFERROR(IF(AND(A197<>\"\",B197<>\"\"),AANVRAAG!$B$6-1,\"\"),\"Gelijk aan ingangsdatum wijziging.\")","v":""}]
[null,null,{"$f":"IFERROR(IF(AND(A198<>\"\",B198<>\"\"),AANVRAAG!$B$6-1,\"\"),\"Gelijk aan ingangsdatum wijziging.\")","v":""}]
[null,null,{"$f":"IFERROR(IF(AND(A199<>\"\",B199<>\"\"),AANVRAAG!$B$6-1,\"\"),\"Gelijk aan ingangsdatum wijziging.\")","v":""}]
[null,null,{"$f":"IFERROR(IF(AND(A200<>\"\",B200<>\"\"),AANVRAAG!$B$6-1,\"\"),\"Gelijk aan ingangsdatum wijziging.\")","v":""}]
[null,null,{"$f":"IFERROR(IF(AND(A201<>\"\",B201<>\"\"),AANVRAAG!$B$6-1,\"\"),\"Gelijk aan ingangsdatum wijziging.\")","v":""}]
[null,null,{"$f":"IFERROR(IF(AND(A202<>\"\",B202<>\"\"),AANVRAAG!$B$6-1,\"\"),\"Gelijk aan ingangsdatum wijziging.\")","v":""}]
[null,null,{"$f":"IFERROR(IF(AND(A203<>\"\",B203<>\"\"),AANVRAAG!$B$6-1,\"\"),\"Gelijk aan ingangsdatum wijziging.\")","v":""}]
[null,null,{"$f":"IFERROR(IF(AND(A204<>\"\",B204<>\"\"),AANVRAAG!$B$6-1,\"\"),\"Gelijk aan ingangsdatum wijziging.\")","v":""}]
[null,null,{"$f":"IFERROR(IF(AND(A205<>\"\",B205<>\"\"),AANVRAAG!$B$6-1,\"\"),\"Gelijk aan ingangsdatum wijziging.\")","v":""}]
[null,null,{"$f":"IFERROR(IF(AND(A206<>\"\",B206<>\"\"),AANVRAAG!$B$6-1,\"\"),\"Gelijk aan ingangsdatum wijziging.\")","v":""}]
[null,null,{"$f":"IFERROR(IF(AND(A207<>\"\",B207<>\"\"),AANVRAAG!$B$6-1,\"\"),\"Gelijk aan ingangsdatum wijziging.\")","v":""}]
[null,null,{"$f":"IFERROR(IF(AND(A208<>\"\",B208<>\"\"),AANVRAAG!$B$6-1,\"\"),\"Gelijk aan ingangsdatum wijziging.\")","v":""}]
[null,null,{"$f":"IFERROR(IF(AND(A209<>\"\",B209<>\"\"),AANVRAAG!$B$6-1,\"\"),\"Gelijk aan ingangsdatum wijziging.\")","v":""}]
[null,null,{"$f":"IFERROR(IF(AND(A210<>\"\",B210<>\"\"),AANVRAAG!$B$6-1,\"\"),\"Gelijk aan ingangsdatum wijziging.\")","v":""}]
[null,null,{"$f":"IFERROR(IF(AND(A211<>\"\",B211<>\"\"),AANVRAAG!$B$6-1,\"\"),\"Gelijk aan ingangsdatum wijziging.\")","v":""}]
[null,null,{"$f":"IFERROR(IF(AND(A212<>\"\",B212<>\"\"),AANVRAAG!$B$6-1,\"\"),\"Gelijk aan ingangsdatum wijziging.\")","v":""}]
[null,null,{"$f":"IFERROR(IF(AND(A213<>\"\",B213<>\"\"),AANVRAAG!$B$6-1,\"\"),\"Gelijk aan ingangsdatum wijziging.\")","v":""}]
[null,null,{"$f":"IFERROR(IF(AND(A214<>\"\",B214<>\"\"),AANVRAAG!$B$6-1,\"\"),\"Gelijk aan ingangsdatum wijziging.\")","v":""}]
[null,null,{"$f":"IFERROR(IF(AND(A215<>\"\",B215<>\"\"),AANVRAAG!$B$6-1,\"\"),\"Gelijk aan ingangsdatum wijziging.\")","v":""}]
[null,null,{"$f":"IFERROR(IF(AND(A216<>\"\",B216<>\"\"),AANVRAAG!$B$6-1,\"\"),\"Gelijk aan ingangsdatum wijziging.\")","v":""}]
[null,null,{"$f":"IFERROR(IF(AND(A217<>\"\",B217<>\"\"),AANVRAAG!$B$6-1,\"\"),\"Gelijk aan ingangsdatum wijziging.\")","v":""}]
[null,null,{"$f":"IFERROR(IF(AND(A218<>\"\",B218<>\"\"),AANVRAAG!$B$6-1,\"\"),\"Gelijk aan ingangsdatum wijziging.\")","v":""}]
[null,null,{"$f":"IFERROR(IF(AND(A219<>\"\",B219<>\"\"),AANVRAAG!$B$6-1,\"\"),\"Gelijk aan ingangsdatum wijziging.\")","v":""}]
[null,null,{"$f":"IFERROR(IF(AND(A220<>\"\",B220<>\"\"),AANVRAAG!$B$6-1,\"\"),\"Gelijk aan ingangsdatum wijziging.\")","v":""}]
[null,null,{"$f":"IFERROR(IF(AND(A221<>\"\",B221<>\"\"),AANVRAAG!$B$6-1,\"\"),\"Gelijk aan ingangsdatum wijziging.\")","v":""}]
[null,null,{"$f":"IFERROR(IF(AND(A222<>\"\",B222<>\"\"),AANVRAAG!$B$6-1,\"\"),\"Gelijk aan ingangsdatum wijziging.\")","v":""}]
[null,null,{"$f":"IFERROR(IF(AND(A223<>\"\",B223<>\"\"),AANVRAAG!$B$6-1,\"\"),\"Gelijk aan ingangsdatum wijziging.\")","v":""}]
[null,null,{"$f":"IFERROR(IF(AND(A224<>\"\",B224<>\"\"),AANVRAAG!$B$6-1,\"\"),\"Gelijk aan ingangsdatum wijziging.\")","v":""}]
[null,null,{"$f":"IFERROR(IF(AND(A225<>\"\",B225<>\"\"),AANVRAAG!$B$6-1,\"\"),\"Gelijk aan ingangsdatum wijziging.\")","v":""}]
[null,null,{"$f":"IFERROR(IF(AND(A226<>\"\",B226<>\"\"),AANVRAAG!$B$6-1,\"\"),\"Gelijk aan ingangsdatum wijziging.\")","v":""}]
[null,null,{"$f":"IFERROR(IF(AND(A227<>\"\",B227<>\"\"),AANVRAAG!$B$6-1,\"\"),\"Gelijk aan ingangsdatum wijziging.\")","v":""}]
[null,null,{"$f":"IFERROR(IF(AND(A228<>\"\",B228<>\"\"),AANVRAAG!$B$6-1,\"\"),\"Gelijk aan ingangsdatum wijziging.\")","v":""}]
[null,null,{"$f":"IFERROR(IF(AND(A229<>\"\",B229<>\"\"),AANVRAAG!$B$6-1,\"\"),\"Gelijk aan ingangsdatum wijziging.\")","v":""}]
[null,null,{"$f":"IFERROR(IF(AND(A230<>\"\",B230<>\"\"),AANVRAAG!$B$6-1,\"\"),\"Gelijk aan ingangsdatum wijziging.\")","v":""}]
[null,null,{"$f":"IFERROR(IF(AND(A231<>\"\",B231<>\"\"),AANVRAAG!$B$6-1,\"\"),\"Gelijk aan ingangsdatum wijziging.\")","v":""}]
[null,null,{"$f":"IFERROR(IF(AND(A232<>\"\",B232<>\"\"),AANVRAAG!$B$6-1,\"\"),\"Gelijk aan ingangsdatum wijziging.\")","v":""}]
[null,null,{"$f":"IFERROR(IF(AND(A233<>\"\",B233<>\"\"),AANVRAAG!$B$6-1,\"\"),\"Gelijk aan ingangsdatum wijziging.\")","v":""}]
[null,null,{"$f":"IFERROR(IF(AND(A234<>\"\",B234<>\"\"),AANVRAAG!$B$6-1,\"\"),\"Gelijk aan ingangsdatum wijziging.\")","v":""}]
[null,null,{"$f":"IFERROR(IF(AND(A235<>\"\",B235<>\"\"),AANVRAAG!$B$6-1,\"\"),\"Gelijk aan ingangsdatum wijziging.\")","v":""}]
[null,null,{"$f":"IFERROR(IF(AND(A236<>\"\",B236<>\"\"),AANVRAAG!$B$6-1,\"\"),\"Gelijk aan ingangsdatum wijziging.\")","v":""}]
[null,null,{"$f":"IFERROR(IF(AND(A237<>\"\",B237<>\"\"),AANVRAAG!$B$6-1,\"\"),\"Gelijk aan ingangsdatum wijziging.\")","v":""}]
[null,null,{"$f":"IFERROR(IF(AND(A238<>\"\",B238<>\"\"),AANVRAAG!$B$6-1,\"\"),\"Gelijk aan ingangsdatum wijziging.\")","v":""}]
[null,null,{"$f":"IFERROR(IF(AND(A239<>\"\",B239<>\"\"),AANVRAAG!$B$6-1,\"\"),\"Gelijk aan ingangsdatum wijziging.\")","v":""}]
[null,null,{"$f":"IFERROR(IF(AND(A240<>\"\",B240<>\"\"),AANVRAAG!$B$6-1,\"\"),\"Gelijk aan ingangsdatum wijziging.\")","v":""}]
[null,null,{"$f":"IFERROR(IF(AND(A241<>\"\",B241<>\"\"),AANVRAAG!$B$6-1,\"\"),\"Gelijk aan ingangsdatum wijziging.\")","v":""}]
[null,null,{"$f":"IFERROR(IF(AND(A242<>\"\",B242<>\"\"),AANVRAAG!$B$6-1,\"\"),\"Gelijk aan ingangsdatum wijziging.\")","v":""}]
[null,null,{"$f":"IFERROR(IF(AND(A243<>\"\",B243<>\"\"),AANVRAAG!$B$6-1,\"\"),\"Gelijk aan ingangsdatum wijziging.\")","v":""}]
[null,null,{"$f":"IFERROR(IF(AND(A244<>\"\",B244<>\"\"),AANVRAAG!$B$6-1,\"\"),\"Gelijk aan ingangsdatum wijziging.\")","v":""}]
[null,null,{"$f":"IFERROR(IF(AND(A245<>\"\",B245<>\"\"),AANVRAAG!$B$6-1,\"\"),\"Gelijk aan ingangsdatum wijziging.\")","v":""}]
[null,null,{"$f":"IFERROR(IF(AND(A246<>\"\",B246<>\"\"),AANVRAAG!$B$6-1,\"\"),\"Gelijk aan ingangsdatum wijziging.\")","v":""}]
[null,null,{"$f":"IFERROR(IF(AND(A247<>\"\",B247<>\"\"),AANVRAAG!$B$6-1,\"\"),\"Gelijk aan ingangsdatum wijziging.\")","v":""}]
[null,null,{"$f":"IFERROR(IF(AND(A248<>\"\",B248<>\"\"),AANVRAAG!$B$6-1,\"\"),\"Gelijk aan ingangsdatum wijziging.\")","v":""}]
[null,null,{"$f":"IFERROR(IF(AND(A249<>\"\",B249<>\"\"),AANVRAAG!$B$6-1,\"\"),\"Gelijk aan ingangsdatum wijziging.\")","v":""}]
[null,null,{"$f":"IFERROR(IF(AND(A250<>\"\",B250<>\"\"),AANVRAAG!$B$6-1,\"\"),\"Gelijk aan ingangsdatum wijziging.\")","v":""}]
[null,null,{"$f":"IFERROR(IF(AND(A251<>\"\",B251<>\"\"),AANVRAAG!$B$6-1,\"\"),\"Gelijk aan ingangsdatum wijziging.\")","v":""}]
[null,null,{"$f":"IFERROR(IF(AND(A252<>\"\",B252<>\"\"),AANVRAAG!$B$6-1,\"\"),\"Gelijk aan ingangsdatum wijziging.\")","v":""}]
[null,null,{"$f":"IFERROR(IF(AND(A253<>\"\",B253<>\"\"),AANVRAAG!$B$6-1,\"\"),\"Gelijk aan ingangsdatum wijziging.\")","v":""}]
[null,null,{"$f":"IFERROR(IF(AND(A254<>\"\",B254<>\"\"),AANVRAAG!$B$6-1,\"\"),\"Gelijk aan ingangsdatum wijziging.\")","v":""}]
[null,null,{"$f":"IFERROR(IF(AND(A255<>\"\",B255<>\"\"),AANVRAAG!$B$6-1,\"\"),\"Gelijk aan ingangsdatum wijziging.\")","v":""}]
[null,null,{"$f":"IFERROR(IF(AND(A256<>\"\",B256<>\"\"),AANVRAAG!$B$6-1,\"\"),\"Gelijk aan ingangsdatum wijziging.\")","v":""}]
[null,null,{"$f":"IFERROR(IF(AND(A257<>\"\",B257<>\"\"),AANVRAAG!$B$6-1,\"\"),\"Gelijk aan ingangsdatum wijziging.\")","v":""}]
[null,null,{"$f":"IFERROR(IF(AND(A258<>\"\",B258<>\"\"),AANVRAAG!$B$6-1,\"\"),\"Gelijk aan ingangsdatum wijziging.\")","v":""}]
[null,null,{"$f":"IFERROR(IF(AND(A259<>\"\",B259<>\"\"),AANVRAAG!$B$6-1,\"\"),\"Gelijk aan ingangsdatum wijziging.\")","v":""}]
[null,null,{"$f":"IFERROR(IF(AND(A260<>\"\",B260<>\"\"),AANVRAAG!$B$6-1,\"\"),\"Gelijk aan ingangsdatum wijziging.\")","v":""}]
[null,null,{"$f":"IFERROR(IF(AND(A261<>\"\",B261<>\"\"),AANVRAAG!$B$6-1,\"\"),\"Gelijk aan ingangsdatum wijziging.\")","v":""}]
[null,null,{"$f":"IFERROR(IF(AND(A262<>\"\",B262<>\"\"),AANVRAAG!$B$6-1,\"\"),\"Gelijk aan ingangsdatum wijziging.\")","v":""}]
[null,null,{"$f":"IFERROR(IF(AND(A263<>\"\",B263<>\"\"),AANVRAAG!$B$6-1,\"\"),\"Gelijk aan ingangsdatum wijziging.\")","v":""}]
[null,null,{"$f":"IFERROR(IF(AND(A264<>\"\",B264<>\"\"),AANVRAAG!$B$6-1,\"\"),\"Gelijk aan ingangsdatum wijziging.\")","v":""}]
[null,null,{"$f":"IFERROR(IF(AND(A265<>\"\",B265<>\"\"),AANVRAAG!$B$6-1,\"\"),\"Gelijk aan ingangsdatum wijziging.\")","v":""}]
[null,null,{"$f":"IFERROR(IF(AND(A266<>\"\",B266<>\"\"),AANVRAAG!$B$6-1,\"\"),\"Gelijk aan ingangsdatum wijziging.\")","v":""}]
[null,null,{"$f":"IFERROR(IF(AND(A267<>\"\",B267<>\"\"),AANVRAAG!$B$6-1,\"\"),\"Gelijk aan ingangsdatum wijziging.\")","v":""}]
[null,null,{"$f":"IFERROR(IF(AND(A268<>\"\",B268<>\"\"),AANVRAAG!$B$6-1,\"\"),\"Gelijk aan ingangsdatum wijziging.\")","v":""}]
[null,null,{"$f":"IFERROR(IF(AND(A269<>\"\",B269<>\"\"),AANVRAAG!$B$6-1,\"\"),\"Gelijk aan ingangsdatum wijziging.\")","v":""}]
[null,null,{"$f":"IFERROR(IF(AND(A270<>\"\",B270<>\"\"),AANVRAAG!$B$6-1,\"\"),\"Gelijk aan ingangsdatum wijziging.\")","v":""}]
[null,null,{"$f":"IFERROR(IF(AND(A271<>\"\",B271<>\"\"),AANVRAAG!$B$6-1,\"\"),\"Gelijk aan ingangsdatum wijziging.\")","v":""}]
[null,null,{"$f":"IFERROR(IF(AND(A272<>\"\",B272<>\"\"),AANVRAAG!$B$6-1,\"\"),\"Gelijk aan ingangsdatum wijziging.\")","v":""}]
[null,null,{"$f":"IFERROR(IF(AND(A273<>\"\",B273<>\"\"),AANVRAAG!$B$6-1,\"\"),\"Gelijk aan ingangsdatum wijziging.\")","v":""}]
[null,null,{"$f":"IFERROR(IF(AND(A274<>\"\",B274<>\"\"),AANVRAAG!$B$6-1,\"\"),\"Gelijk aan ingangsdatum wijziging.\")","v":""}]
[null,null,{"$f":"IFERROR(IF(AND(A275<>\"\",B275<>\"\"),AANVRAAG!$B$6-1,\"\"),\"Gelijk aan ingangsdatum wijziging.\")","v":""}]
[null,null,{"$f":"IFERROR(IF(AND(A276<>\"\",B276<>\"\"),AANVRAAG!$B$6-1,\"\"),\"Gelijk aan ingangsdatum wijziging.\")","v":""}]
[null,null,{"$f":"IFERROR(IF(AND(A277<>\"\",B277<>\"\"),AANVRAAG!$B$6-1,\"\"),\"Gelijk aan ingangsdatum wijziging.\")","v":""}]
[null,null,{"$f":"IFERROR(IF(AND(A278<>\"\",B278<>\"\"),AANVRAAG!$B$6-1,\"\"),\"Gelijk aan ingangsdatum wijziging.\")","v":""}]
[null,null,{"$f":"IFERROR(IF(AND(A279<>\"\",B279<>\"\"),AANVRAAG!$B$6-1,\"\"),\"Gelijk aan ingangsdatum wijziging.\")","v":""}]
[null,null,{"$f":"IFERROR(IF(AND(A280<>\"\",B280<>\"\"),AANVRAAG!$B$6-1,\"\"),\"Gelijk aan ingangsdatum wijziging.\")","v":""}]
[null,null,{"$f":"IFERROR(IF(AND(A281<>\"\",B281<>\"\"),AANVRAAG!$B$6-1,\"\"),\"Gelijk aan ingangsdatum wijziging.\")","v":""}]
[null,null,{"$f":"IFERROR(IF(AND(A282<>\"\",B282<>\"\"),AANVRAAG!$B$6-1,\"\"),\"Gelijk aan ingangsdatum wijziging.\")","v":""}]
[null,null,{"$f":"IFERROR(IF(AND(A283<>\"\",B283<>\"\"),AANVRAAG!$B$6-1,\"\"),\"Gelijk aan ingangsdatum wijziging.\")","v":""}]
[null,null,{"$f":"IFERROR(IF(AND(A284<>\"\",B284<>\"\"),AANVRAAG!$B$6-1,\"\"),\"Gelijk aan ingangsdatum wijziging.\")","v":""}]
[null,null,{"$f":"IFERROR(IF(AND(A285<>\"\",B285<>\"\"),AANVRAAG!$B$6-1,\"\"),\"Gelijk aan ingangsdatum wijziging.\")","v":""}]
[null,null,{"$f":"IFERROR(IF(AND(A286<>\"\",B286<>\"\"),AANVRAAG!$B$6-1,\"\"),\"Gelijk aan ingangsdatum wijziging.\")","v":""}]
[null,null,{"$f":"IFERROR(IF(AND(A287<>\"\",B287<>\"\"),AANVRAAG!$B$6-1,\"\"),\"Gelijk aan ingangsdatum wijziging.\")","v":""}]
[null,null,{"$f":"IFERROR(IF(AND(A288<>\"\",B288<>\"\"),AANVRAAG!$B$6-1,\"\"),\"Gelijk aan ingangsdatum wijziging.\")","v":""}]
[null,null,{"$f":"IFERROR(IF(AND(A289<>\"\",B289<>\"\"),AANVRAAG!$B$6-1,\"\"),\"Gelijk aan ingangsdatum wijziging.\")","v":""}]
[null,null,{"$f":"IFERROR(IF(AND(A290<>\"\",B290<>\"\"),AANVRAAG!$B$6-1,\"\"),\"Gelijk aan ingangsdatum wijziging.\")","v":""}]
[null,null,{"$f":"IFERROR(IF(AND(A291<>\"\",B291<>\"\"),AANVRAAG!$B$6-1,\"\"),\"Gelijk aan ingangsdatum wijziging.\")","v":""}]
[null,null,{"$f":"IFERROR(IF(AND(A292<>\"\",B292<>\"\"),AANVRAAG!$B$6-1,\"\"),\"Gelijk aan ingangsdatum wijziging.\")","v":""}]
[null,null,{"$f":"IFERROR(IF(AND(A293<>\"\",B293<>\"\"),AANVRAAG!$B$6-1,\"\"),\"Gelijk aan ingangsdatum wijziging.\")","v":""}]
[null,null,{"$f":"IFERROR(IF(AND(A294<>\"\",B294<>\"\"),AANVRAAG!$B$6-1,\"\"),\"Gelijk aan ingangsdatum wijziging.\")","v":""}]
[null,null,{"$f":"IFERROR(IF(AND(A295<>\"\",B295<>\"\"),AANVRAAG!$B$6-1,\"\"),\"Gelijk aan ingangsdatum wijziging.\")","v":""}]
[null,null,{"$f":"IFERROR(IF(AND(A296<>\"\",B296<>\"\"),AANVRAAG!$B$6-1,\"\"),\"Gelijk aan ingangsdatum wijziging.\")","v":""}]
[null,null,{"$f":"IFERROR(IF(AND(A297<>\"\",B297<>\"\"),AANVRAAG!$B$6-1,\"\"),\"Gelijk aan ingangsdatum wijziging.\")","v":""}]
[null,null,{"$f":"IFERROR(IF(AND(A298<>\"\",B298<>\"\"),AANVRAAG!$B$6-1,\"\"),\"Gelijk aan ingangsdatum wijziging.\")","v":""}]
[null,null,{"$f":"IFERROR(IF(AND(A299<>\"\",B299<>\"\"),AANVRAAG!$B$6-1,\"\"),\"Gelijk aan ingangsdatum wijziging.\")","v":""}]
[null,null,{"$f":"IFERROR(IF(AND(A300<>\"\",B300<>\"\"),AANVRAAG!$B$6-1,\"\"),\"Gelijk aan ingangsdatum wijziging.\")","v":""}]
[null,null,{"$f":"IFERROR(IF(AND(A301<>\"\",B301<>\"\"),AANVRAAG!$B$6-1,\"\"),\"Gelijk aan ingangsdatum wijziging.\")","v":""}]
[null,null,{"$f":"IFERROR(IF(AND(A302<>\"\",B302<>\"\"),AANVRAAG!$B$6-1,\"\"),\"Gelijk aan ingangsdatum wijziging.\")","v":""}]
[null,null,{"$f":"IFERROR(IF(AND(A303<>\"\",B303<>\"\"),AANVRAAG!$B$6-1,\"\"),\"Gelijk aan ingangsdatum wijziging.\")","v":""}]
[null,null,{"$f":"IFERROR(IF(AND(A304<>\"\",B304<>\"\"),AANVRAAG!$B$6-1,\"\"),\"Gelijk aan ingangsdatum wijziging.\")","v":""}]
[null,null,{"$f":"IFERROR(IF(AND(A305<>\"\",B305<>\"\"),AANVRAAG!$B$6-1,\"\"),\"Gelijk aan ingangsdatum wijziging.\")","v":""}]
[null,null,{"$f":"IFERROR(IF(AND(A306<>\"\",B306<>\"\"),AANVRAAG!$B$6-1,\"\"),\"Gelijk aan ingangsdatum wijziging.\")","v":""}]
[null,null,{"$f":"IFERROR(IF(AND(A307<>\"\",B307<>\"\"),AANVRAAG!$B$6-1,\"\"),\"Gelijk aan ingangsdatum wijziging.\")","v":""}]
[null,null,{"$f":"IFERROR(IF(AND(A308<>\"\",B308<>\"\"),AANVRAAG!$B$6-1,\"\"),\"Gelijk aan ingangsdatum wijziging.\")","v":""}]
[null,null,{"$f":"IFERROR(IF(AND(A309<>\"\",B309<>\"\"),AANVRAAG!$B$6-1,\"\"),\"Gelijk aan ingangsdatum wijziging.\")","v":""}]
[null,null,{"$f":"IFERROR(IF(AND(A310<>\"\",B310<>\"\"),AANVRAAG!$B$6-1,\"\"),\"Gelijk aan ingangsdatum wijziging.\")","v":""}]
[null,null,{"$f":"IFERROR(IF(AND(A311<>\"\",B311<>\"\"),AANVRAAG!$B$6-1,\"\"),\"Gelijk aan ingangsdatum wijziging.\")","v":""}]
[null,null,{"$f":"IFERROR(IF(AND(A312<>\"\",B312<>\"\"),AANVRAAG!$B$6-1,\"\"),\"Gelijk aan ingangsdatum wijziging.\")","v":""}]
[null,null,{"$f":"IFERROR(IF(AND(A313<>\"\",B313<>\"\"),AANVRAAG!$B$6-1,\"\"),\"Gelijk aan ingangsdatum wijziging.\")","v":""}]
[null,null,{"$f":"IFERROR(IF(AND(A314<>\"\",B314<>\"\"),AANVRAAG!$B$6-1,\"\"),\"Gelijk aan ingangsdatum wijziging.\")","v":""}]
[null,null,{"$f":"IFERROR(IF(AND(A315<>\"\",B315<>\"\"),AANVRAAG!$B$6-1,\"\"),\"Gelijk aan ingangsdatum wijziging.\")","v":""}]
[null,null,{"$f":"IFERROR(IF(AND(A316<>\"\",B316<>\"\"),AANVRAAG!$B$6-1,\"\"),\"Gelijk aan ingangsdatum wijziging.\")","v":""}]
[null,null,{"$f":"IFERROR(IF(AND(A317<>\"\",B317<>\"\"),AANVRAAG!$B$6-1,\"\"),\"Gelijk aan ingangsdatum wijziging.\")","v":""}]
[null,null,{"$f":"IFERROR(IF(AND(A318<>\"\",B318<>\"\"),AANVRAAG!$B$6-1,\"\"),\"Gelijk aan ingangsdatum wijziging.\")","v":""}]
[null,null,{"$f":"IFERROR(IF(AND(A319<>\"\",B319<>\"\"),AANVRAAG!$B$6-1,\"\"),\"Gelijk aan ingangsdatum wijziging.\")","v":""}]
[null,null,{"$f":"IFERROR(IF(AND(A320<>\"\",B320<>\"\"),AANVRAAG!$B$6-1,\"\"),\"Gelijk aan ingangsdatum wijziging.\")","v":""}]
[null,null,{"$f":"IFERROR(IF(AND(A321<>\"\",B321<>\"\"),AANVRAAG!$B$6-1,\"\"),\"Gelijk aan ingangsdatum wijziging.\")","v":""}]
[null,null,{"$f":"IFERROR(IF(AND(A322<>\"\",B322<>\"\"),AANVRAAG!$B$6-1,\"\"),\"Gelijk aan ingangsdatum wijziging.\")","v":""}]
[null,null,{"$f":"IFERROR(IF(AND(A323<>\"\",B323<>\"\"),AANVRAAG!$B$6-1,\"\"),\"Gelijk aan ingangsdatum wijziging.\")","v":""}]
[null,null,{"$f":"IFERROR(IF(AND(A324<>\"\",B324<>\"\"),AANVRAAG!$B$6-1,\"\"),\"Gelijk aan ingangsdatum wijziging.\")","v":""}]
[null,null,{"$f":"IFERROR(IF(AND(A325<>\"\",B325<>\"\"),AANVRAAG!$B$6-1,\"\"),\"Gelijk aan ingangsdatum wijziging.\")","v":""}]
[null,null,{"$f":"IFERROR(IF(AND(A326<>\"\",B326<>\"\"),AANVRAAG!$B$6-1,\"\"),\"Gelijk aan ingangsdatum wijziging.\")","v":""}]
[null,null,{"$f":"IFERROR(IF(AND(A327<>\"\",B327<>\"\"),AANVRAAG!$B$6-1,\"\"),\"Gelijk aan ingangsdatum wijziging.\")","v":""}]
[null,null,{"$f":"IFERROR(IF(AND(A328<>\"\",B328<>\"\"),AANVRAAG!$B$6-1,\"\"),\"Gelijk aan ingangsdatum wijziging.\")","v":""}]
[null,null,{"$f":"IFERROR(IF(AND(A329<>\"\",B329<>\"\"),AANVRAAG!$B$6-1,\"\"),\"Gelijk aan ingangsdatum wijziging.\")","v":""}]
[null,null,{"$f":"IFERROR(IF(AND(A330<>\"\",B330<>\"\"),AANVRAAG!$B$6-1,\"\"),\"Gelijk aan ingangsdatum wijziging.\")","v":""}]
[null,null,{"$f":"IFERROR(IF(AND(A331<>\"\",B331<>\"\"),AANVRAAG!$B$6-1,\"\"),\"Gelijk aan ingangsdatum wijziging.\")","v":""}]
[null,null,{"$f":"IFERROR(IF(AND(A332<>\"\",B332<>\"\"),AANVRAAG!$B$6-1,\"\"),\"Gelijk aan ingangsdatum wijziging.\")","v":""}]
[null,null,{"$f":"IFERROR(IF(AND(A333<>\"\",B333<>\"\"),AANVRAAG!$B$6-1,\"\"),\"Gelijk aan ingangsdatum wijziging.\")","v":""}]
[null,null,{"$f":"IFERROR(IF(AND(A334<>\"\",B334<>\"\"),AANVRAAG!$B$6-1,\"\"),\"Gelijk aan ingangsdatum wijziging.\")","v":""}]
[null,null,{"$f":"IFERROR(IF(AND(A335<>\"\",B335<>\"\"),AANVRAAG!$B$6-1,\"\"),\"Gelijk aan ingangsdatum wijziging.\")","v":""}]
[null,null,{"$f":"IFERROR(IF(AND(A336<>\"\",B336<>\"\"),AANVRAAG!$B$6-1,\"\"),\"Gelijk aan ingangsdatum wijziging.\")","v":""}]
[null,null,{"$f":"IFERROR(IF(AND(A337<>\"\",B337<>\"\"),AANVRAAG!$B$6-1,\"\"),\"Gelijk aan ingangsdatum wijziging.\")","v":""}]
[null,null,{"$f":"IFERROR(IF(AND(A338<>\"\",B338<>\"\"),AANVRAAG!$B$6-1,\"\"),\"Gelijk aan ingangsdatum wijziging.\")","v":""}]
[null,null,{"$f":"IFERROR(IF(AND(A339<>\"\",B339<>\"\"),AANVRAAG!$B$6-1,\"\"),\"Gelijk aan ingangsdatum wijziging.\")","v":""}]
[null,null,{"$f":"IFERROR(IF(AND(A340<>\"\",B340<>\"\"),AANVRAAG!$B$6-1,\"\"),\"Gelijk aan ingangsdatum wijziging.\")","v":""}]
[null,null,{"$f":"IFERROR(IF(AND(A341<>\"\",B341<>\"\"),AANVRAAG!$B$6-1,\"\"),\"Gelijk aan ingangsdatum wijziging.\")","v":""}]
[null,null,{"$f":"IFERROR(IF(AND(A342<>\"\",B342<>\"\"),AANVRAAG!$B$6-1,\"\"),\"Gelijk aan ingangsdatum wijziging.\")","v":""}]
[null,null,{"$f":"IFERROR(IF(AND(A343<>\"\",B343<>\"\"),AANVRAAG!$B$6-1,\"\"),\"Gelijk aan ingangsdatum wijziging.\")","v":""}]
[null,null,{"$f":"IFERROR(IF(AND(A344<>\"\",B344<>\"\"),AANVRAAG!$B$6-1,\"\"),\"Gelijk aan ingangsdatum wijziging.\")","v":""}]
[null,null,{"$f":"IFERROR(IF(AND(A345<>\"\",B345<>\"\"),AANVRAAG!$B$6-1,\"\"),\"Gelijk aan ingangsdatum wijziging.\")","v":""}]
[null,null,{"$f":"IFERROR(IF(AND(A346<>\"\",B346<>\"\"),AANVRAAG!$B$6-1,\"\"),\"Gelijk aan ingangsdatum wijziging.\")","v":""}]
[null,null,{"$f":"IFERROR(IF(AND(A347<>\"\",B347<>\"\"),AANVRAAG!$B$6-1,\"\"),\"Gelijk aan ingangsdatum wijziging.\")","v":""}]
[null,null,{"$f":"IFERROR(IF(AND(A348<>\"\",B348<>\"\"),AANVRAAG!$B$6-1,\"\"),\"Gelijk aan ingangsdatum wijziging.\")","v":""}]
[null,null,{"$f":"IFERROR(IF(AND(A349<>\"\",B349<>\"\"),AANVRAAG!$B$6-1,\"\"),\"Gelijk aan ingangsdatum wijziging.\")","v":""}]
[null,null,{"$f":"IFERROR(IF(AND(A350<>\"\",B350<>\"\"),AANVRAAG!$B$6-1,\"\"),\"Gelijk aan ingangsdatum wijziging.\")","v":""}]
[null,null,{"$f":"IFERROR(IF(AND(A351<>\"\",B351<>\"\"),AANVRAAG!$B$6-1,\"\"),\"Gelijk aan ingangsdatum wijziging.\")","v":""}]
[null,null,{"$f":"IFERROR(IF(AND(A352<>\"\",B352<>\"\"),AANVRAAG!$B$6-1,\"\"),\"Gelijk aan ingangsdatum wijziging.\")","v":""}]
[null,null,{"$f":"IFERROR(IF(AND(A353<>\"\",B353<>\"\"),AANVRAAG!$B$6-1,\"\"),\"Gelijk aan ingangsdatum wijziging.\")","v":""}]
[null,null,{"$f":"IFERROR(IF(AND(A354<>\"\",B354<>\"\"),AANVRAAG!$B$6-1,\"\"),\"Gelijk aan ingangsdatum wijziging.\")","v":""}]
[null,null,{"$f":"IFERROR(IF(AND(A355<>\"\",B355<>\"\"),AANVRAAG!$B$6-1,\"\"),\"Gelijk aan ingangsdatum wijziging.\")","v":""}]
[null,null,{"$f":"IFERROR(IF(AND(A356<>\"\",B356<>\"\"),AANVRAAG!$B$6-1,\"\"),\"Gelijk aan ingangsdatum wijziging.\")","v":""}]
[null,null,{"$f":"IFERROR(IF(AND(A357<>\"\",B357<>\"\"),AANVRAAG!$B$6-1,\"\"),\"Gelijk aan ingangsdatum wijziging.\")","v":""}]
[null,null,{"$f":"IFERROR(IF(AND(A358<>\"\",B358<>\"\"),AANVRAAG!$B$6-1,\"\"),\"Gelijk aan ingangsdatum wijziging.\")","v":""}]
[null,null,{"$f":"IFERROR(IF(AND(A359<>\"\",B359<>\"\"),AANVRAAG!$B$6-1,\"\"),\"Gelijk aan ingangsdatum wijziging.\")","v":""}]
[null,null,{"$f":"IFERROR(IF(AND(A360<>\"\",B360<>\"\"),AANVRAAG!$B$6-1,\"\"),\"Gelijk aan ingangsdatum wijziging.\")","v":""}]
[null,null,{"$f":"IFERROR(IF(AND(A361<>\"\",B361<>\"\"),AANVRAAG!$B$6-1,\"\"),\"Gelijk aan ingangsdatum wijziging.\")","v":""}]
[null,null,{"$f":"IFERROR(IF(AND(A362<>\"\",B362<>\"\"),AANVRAAG!$B$6-1,\"\"),\"Gelijk aan ingangsdatum wijziging.\")","v":""}]
[null,null,{"$f":"IFERROR(IF(AND(A363<>\"\",B363<>\"\"),AANVRAAG!$B$6-1,\"\"),\"Gelijk aan ingangsdatum wijziging.\")","v":""}]
[null,null,{"$f":"IFERROR(IF(AND(A364<>\"\",B364<>\"\"),AANVRAAG!$B$6-1,\"\"),\"Gelijk aan ingangsdatum wijziging.\")","v":""}]
[null,null,{"$f":"IFERROR(IF(AND(A365<>\"\",B365<>\"\"),AANVRAAG!$B$6-1,\"\"),\"Gelijk aan ingangsdatum wijziging.\")","v":""}]
[null,null,{"$f":"IFERROR(IF(AND(A366<>\"\",B366<>\"\"),AANVRAAG!$B$6-1,\"\"),\"Gelijk aan ingangsdatum wijziging.\")","v":""}]
[null,null,{"$f":"IFERROR(IF(AND(A367<>\"\",B367<>\"\"),AANVRAAG!$B$6-1,\"\"),\"Gelijk aan ingangsdatum wijziging.\")","v":""}]
[null,null,{"$f":"IFERROR(IF(AND(A368<>\"\",B368<>\"\"),AANVRAAG!$B$6-1,\"\"),\"Gelijk aan ingangsdatum wijziging.\")","v":""}]
[null,null,{"$f":"IFERROR(IF(AND(A369<>\"\",B369<>\"\"),AANVRAAG!$B$6-1,\"\"),\"Gelijk aan ingangsdatum wijziging.\")","v":""}]
[null,null,{"$f":"IFERROR(IF(AND(A370<>\"\",B370<>\"\"),AANVRAAG!$B$6-1,\"\"),\"Gelijk aan ingangsdatum wijziging.\")","v":""}]
[null,null,{"$f":"IFERROR(IF(AND(A371<>\"\",B371<>\"\"),AANVRAAG!$B$6-1,\"\"),\"Gelijk aan ingangsdatum wijziging.\")","v":""}]
[null,null,{"$f":"IFERROR(IF(AND(A372<>\"\",B372<>\"\"),AANVRAAG!$B$6-1,\"\"),\"Gelijk aan ingangsdatum wijziging.\")","v":""}]
[null,null,{"$f":"IFERROR(IF(AND(A373<>\"\",B373<>\"\"),AANVRAAG!$B$6-1,\"\"),\"Gelijk aan ingangsdatum wijziging.\")","v":""}]
[null,null,{"$f":"IFERROR(IF(AND(A374<>\"\",B374<>\"\"),AANVRAAG!$B$6-1,\"\"),\"Gelijk aan ingangsdatum wijziging.\")","v":""}]
[null,null,{"$f":"IFERROR(IF(AND(A375<>\"\",B375<>\"\"),AANVRAAG!$B$6-1,\"\"),\"Gelijk aan ingangsdatum wijziging.\")","v":""}]
[null,null,{"$f":"IFERROR(IF(AND(A376<>\"\",B376<>\"\"),AANVRAAG!$B$6-1,\"\"),\"Gelijk aan ingangsdatum wijziging.\")","v":""}]
[null,null,{"$f":"IFERROR(IF(AND(A377<>\"\",B377<>\"\"),AANVRAAG!$B$6-1,\"\"),\"Gelijk aan ingangsdatum wijziging.\")","v":""}]
[null,null,{"$f":"IFERROR(IF(AND(A378<>\"\",B378<>\"\"),AANVRAAG!$B$6-1,\"\"),\"Gelijk aan ingangsdatum wijziging.\")","v":""}]
[null,null,{"$f":"IFERROR(IF(AND(A379<>\"\",B379<>\"\"),AANVRAAG!$B$6-1,\"\"),\"Gelijk aan ingangsdatum wijziging.\")","v":""}]
[null,null,{"$f":"IFERROR(IF(AND(A380<>\"\",B380<>\"\"),AANVRAAG!$B$6-1,\"\"),\"Gelijk aan ingangsdatum wijziging.\")","v":""}]
[null,null,{"$f":"IFERROR(IF(AND(A381<>\"\",B381<>\"\"),AANVRAAG!$B$6-1,\"\"),\"Gelijk aan ingangsdatum wijziging.\")","v":""}]
[null,null,{"$f":"IFERROR(IF(AND(A382<>\"\",B382<>\"\"),AANVRAAG!$B$6-1,\"\"),\"Gelijk aan ingangsdatum wijziging.\")","v":""}]
[null,null,{"$f":"IFERROR(IF(AND(A383<>\"\",B383<>\"\"),AANVRAAG!$B$6-1,\"\"),\"Gelijk aan ingangsdatum wijziging.\")","v":""}]
[null,null,{"$f":"IFERROR(IF(AND(A384<>\"\",B384<>\"\"),AANVRAAG!$B$6-1,\"\"),\"Gelijk aan ingangsdatum wijziging.\")","v":""}]
[null,null,{"$f":"IFERROR(IF(AND(A385<>\"\",B385<>\"\"),AANVRAAG!$B$6-1,\"\"),\"Gelijk aan ingangsdatum wijziging.\")","v":""}]
[null,null,{"$f":"IFERROR(IF(AND(A386<>\"\",B386<>\"\"),AANVRAAG!$B$6-1,\"\"),\"Gelijk aan ingangsdatum wijziging.\")","v":""}]
[null,null,{"$f":"IFERROR(IF(AND(A387<>\"\",B387<>\"\"),AANVRAAG!$B$6-1,\"\"),\"Gelijk aan ingangsdatum wijziging.\")","v":""}]
[null,null,{"$f":"IFERROR(IF(AND(A388<>\"\",B388<>\"\"),AANVRAAG!$B$6-1,\"\"),\"Gelijk aan ingangsdatum wijziging.\")","v":""}]
[null,null,{"$f":"IFERROR(IF(AND(A389<>\"\",B389<>\"\"),AANVRAAG!$B$6-1,\"\"),\"Gelijk aan ingangsdatum wijziging.\")","v":""}]
[null,null,{"$f":"IFERROR(IF(AND(A390<>\"\",B390<>\"\"),AANVRAAG!$B$6-1,\"\"),\"Gelijk aan ingangsdatum wijziging.\")","v":""}]
[null,null,{"$f":"IFERROR(IF(AND(A391<>\"\",B391<>\"\"),AANVRAAG!$B$6-1,\"\"),\"Gelijk aan ingangsdatum wijziging.\")","v":""}]
[null,null,{"$f":"IFERROR(IF(AND(A392<>\"\",B392<>\"\"),AANVRAAG!$B$6-1,\"\"),\"Gelijk aan ingangsdatum wijziging.\")","v":""}]
[null,null,{"$f":"IFERROR(IF(AND(A393<>\"\",B393<>\"\"),AANVRAAG!$B$6-1,\"\"),\"Gelijk aan ingangsdatum wijziging.\")","v":""}]
[null,null,{"$f":"IFERROR(IF(AND(A394<>\"\",B394<>\"\"),AANVRAAG!$B$6-1,\"\"),\"Gelijk aan ingangsdatum wijziging.\")","v":""}]
[null,null,{"$f":"IFERROR(IF(AND(A395<>\"\",B395<>\"\"),AANVRAAG!$B$6-1,\"\"),\"Gelijk aan ingangsdatum wijziging.\")","v":""}]
[null,null,{"$f":"IFERROR(IF(AND(A396<>\"\",B396<>\"\"),AANVRAAG!$B$6-1,\"\"),\"Gelijk aan ingangsdatum wijziging.\")","v":""}]
[null,null,{"$f":"IFERROR(IF(AND(A397<>\"\",B397<>\"\"),AANVRAAG!$B$6-1,\"\"),\"Gelijk aan ingangsdatum wijziging.\")","v":""}]
[null,null,{"$f":"IFERROR(IF(AND(A398<>\"\",B398<>\"\"),AANVRAAG!$B$6-1,\"\"),\"Gelijk aan ingangsdatum wijziging.\")","v":""}]
[null,null,{"$f":"IFERROR(IF(AND(A399<>\"\",B399<>\"\"),AANVRAAG!$B$6-1,\"\"),\"Gelijk aan ingangsdatum wijziging.\")","v":""}]
[null,null,{"$f":"IFERROR(IF(AND(A400<>\"\",B400<>\"\"),AANVRAAG!$B$6-1,\"\"),\"Gelijk aan ingangsdatum wijziging.\")","v":""}]
[null,null,{"$f":"IFERROR(IF(AND(A401<>\"\",B401<>\"\"),AANVRAAG!$B$6-1,\"\"),\"Gelijk aan ingangsdatum wijziging.\")","v":""}]
[null,null,{"$f":"IFERROR(IF(AND(A402<>\"\",B402<>\"\"),AANVRAAG!$B$6-1,\"\"),\"Gelijk aan ingangsdatum wijziging.\")","v":""}]
[null,null,{"$f":"IFERROR(IF(AND(A403<>\"\",B403<>\"\"),AANVRAAG!$B$6-1,\"\"),\"Gelijk aan ingangsdatum wijziging.\")","v":""}]
[null,null,{"$f":"IFERROR(IF(AND(A404<>\"\",B404<>\"\"),AANVRAAG!$B$6-1,\"\"),\"Gelijk aan ingangsdatum wijziging.\")","v":""}]
[null,null,{"$f":"IFERROR(IF(AND(A405<>\"\",B405<>\"\"),AANVRAAG!$B$6-1,\"\"),\"Gelijk aan ingangsdatum wijziging.\")","v":""}]
[null,null,{"$f":"IFERROR(IF(AND(A406<>\"\",B406<>\"\"),AANVRAAG!$B$6-1,\"\"),\"Gelijk aan ingangsdatum wijziging.\")","v":""}]
[null,null,{"$f":"IFERROR(IF(AND(A407<>\"\",B407<>\"\"),AANVRAAG!$B$6-1,\"\"),\"Gelijk aan ingangsdatum wijziging.\")","v":""}]
[null,null,{"$f":"IFERROR(IF(AND(A408<>\"\",B408<>\"\"),AANVRAAG!$B$6-1,\"\"),\"Gelijk aan ingangsdatum wijziging.\")","v":""}]
[null,null,{"$f":"IFERROR(IF(AND(A409<>\"\",B409<>\"\"),AANVRAAG!$B$6-1,\"\"),\"Gelijk aan ingangsdatum wijziging.\")","v":""}]
[null,null,{"$f":"IFERROR(IF(AND(A410<>\"\",B410<>\"\"),AANVRAAG!$B$6-1,\"\"),\"Gelijk aan ingangsdatum wijziging.\")","v":""}]
[null,null,{"$f":"IFERROR(IF(AND(A411<>\"\",B411<>\"\"),AANVRAAG!$B$6-1,\"\"),\"Gelijk aan ingangsdatum wijziging.\")","v":""}]
[null,null,{"$f":"IFERROR(IF(AND(A412<>\"\",B412<>\"\"),AANVRAAG!$B$6-1,\"\"),\"Gelijk aan ingangsdatum wijziging.\")","v":""}]
[null,null,{"$f":"IFERROR(IF(AND(A413<>\"\",B413<>\"\"),AANVRAAG!$B$6-1,\"\"),\"Gelijk aan ingangsdatum wijziging.\")","v":""}]
[null,null,{"$f":"IFERROR(IF(AND(A414<>\"\",B414<>\"\"),AANVRAAG!$B$6-1,\"\"),\"Gelijk aan ingangsdatum wijziging.\")","v":""}]
[null,null,{"$f":"IFERROR(IF(AND(A415<>\"\",B415<>\"\"),AANVRAAG!$B$6-1,\"\"),\"Gelijk aan ingangsdatum wijziging.\")","v":""}]
[null,null,{"$f":"IFERROR(IF(AND(A416<>\"\",B416<>\"\"),AANVRAAG!$B$6-1,\"\"),\"Gelijk aan ingangsdatum wijziging.\")","v":""}]
[null,null,{"$f":"IFERROR(IF(AND(A417<>\"\",B417<>\"\"),AANVRAAG!$B$6-1,\"\"),\"Gelijk aan ingangsdatum wijziging.\")","v":""}]
[null,null,{"$f":"IFERROR(IF(AND(A418<>\"\",B418<>\"\"),AANVRAAG!$B$6-1,\"\"),\"Gelijk aan ingangsdatum wijziging.\")","v":""}]
[null,null,{"$f":"IFERROR(IF(AND(A419<>\"\",B419<>\"\"),AANVRAAG!$B$6-1,\"\"),\"Gelijk aan ingangsdatum wijziging.\")","v":""}]
[null,null,{"$f":"IFERROR(IF(AND(A420<>\"\",B420<>\"\"),AANVRAAG!$B$6-1,\"\"),\"Gelijk aan ingangsdatum wijziging.\")","v":""}]
[null,null,{"$f":"IFERROR(IF(AND(A421<>\"\",B421<>\"\"),AANVRAAG!$B$6-1,\"\"),\"Gelijk aan ingangsdatum wijziging.\")","v":""}]
[null,null,{"$f":"IFERROR(IF(AND(A422<>\"\",B422<>\"\"),AANVRAAG!$B$6-1,\"\"),\"Gelijk aan ingangsdatum wijziging.\")","v":""}]
[null,null,{"$f":"IFERROR(IF(AND(A423<>\"\",B423<>\"\"),AANVRAAG!$B$6-1,\"\"),\"Gelijk aan ingangsdatum wijziging.\")","v":""}]
[null,null,{"$f":"IFERROR(IF(AND(A424<>\"\",B424<>\"\"),AANVRAAG!$B$6-1,\"\"),\"Gelijk aan ingangsdatum wijziging.\")","v":""}]
[null,null,{"$f":"IFERROR(IF(AND(A425<>\"\",B425<>\"\"),AANVRAAG!$B$6-1,\"\"),\"Gelijk aan ingangsdatum wijziging.\")","v":""}]
[null,null,{"$f":"IFERROR(IF(AND(A426<>\"\",B426<>\"\"),AANVRAAG!$B$6-1,\"\"),\"Gelijk aan ingangsdatum wijziging.\")","v":""}]
[null,null,{"$f":"IFERROR(IF(AND(A427<>\"\",B427<>\"\"),AANVRAAG!$B$6-1,\"\"),\"Gelijk aan ingangsdatum wijziging.\")","v":""}]
[null,null,{"$f":"IFERROR(IF(AND(A428<>\"\",B428<>\"\"),AANVRAAG!$B$6-1,\"\"),\"Gelijk aan ingangsdatum wijziging.\")","v":""}]
[null,null,{"$f":"IFERROR(IF(AND(A429<>\"\",B429<>\"\"),AANVRAAG!$B$6-1,\"\"),\"Gelijk aan ingangsdatum wijziging.\")","v":""}]
[null,null,{"$f":"IFERROR(IF(AND(A430<>\"\",B430<>\"\"),AANVRAAG!$B$6-1,\"\"),\"Gelijk aan ingangsdatum wijziging.\")","v":""}]
[null,null,{"$f":"IFERROR(IF(AND(A431<>\"\",B431<>\"\"),AANVRAAG!$B$6-1,\"\"),\"Gelijk aan ingangsdatum wijziging.\")","v":""}]
[null,null,{"$f":"IFERROR(IF(AND(A432<>\"\",B432<>\"\"),AANVRAAG!$B$6-1,\"\"),\"Gelijk aan ingangsdatum wijziging.\")","v":""}]
[null,null,{"$f":"IFERROR(IF(AND(A433<>\"\",B433<>\"\"),AANVRAAG!$B$6-1,\"\"),\"Gelijk aan ingangsdatum wijziging.\")","v":""}]
[null,null,{"$f":"IFERROR(IF(AND(A434<>\"\",B434<>\"\"),AANVRAAG!$B$6-1,\"\"),\"Gelijk aan ingangsdatum wijziging.\")","v":""}]
[null,null,{"$f":"IFERROR(IF(AND(A435<>\"\",B435<>\"\"),AANVRAAG!$B$6-1,\"\"),\"Gelijk aan ingangsdatum wijziging.\")","v":""}]
[null,null,{"$f":"IFERROR(IF(AND(A436<>\"\",B436<>\"\"),AANVRAAG!$B$6-1,\"\"),\"Gelijk aan ingangsdatum wijziging.\")","v":""}]
[null,null,{"$f":"IFERROR(IF(AND(A437<>\"\",B437<>\"\"),AANVRAAG!$B$6-1,\"\"),\"Gelijk aan ingangsdatum wijziging.\")","v":""}]
[null,null,{"$f":"IFERROR(IF(AND(A438<>\"\",B438<>\"\"),AANVRAAG!$B$6-1,\"\"),\"Gelijk aan ingangsdatum wijziging.\")","v":""}]
[null,null,{"$f":"IFERROR(IF(AND(A439<>\"\",B439<>\"\"),AANVRAAG!$B$6-1,\"\"),\"Gelijk aan ingangsdatum wijziging.\")","v":""}]
[null,null,{"$f":"IFERROR(IF(AND(A440<>\"\",B440<>\"\"),AANVRAAG!$B$6-1,\"\"),\"Gelijk aan ingangsdatum wijziging.\")","v":""}]
[null,null,{"$f":"IFERROR(IF(AND(A441<>\"\",B441<>\"\"),AANVRAAG!$B$6-1,\"\"),\"Gelijk aan ingangsdatum wijziging.\")","v":""}]
[null,null,{"$f":"IFERROR(IF(AND(A442<>\"\",B442<>\"\"),AANVRAAG!$B$6-1,\"\"),\"Gelijk aan ingangsdatum wijziging.\")","v":""}]
[null,null,{"$f":"IFERROR(IF(AND(A443<>\"\",B443<>\"\"),AANVRAAG!$B$6-1,\"\"),\"Gelijk aan ingangsdatum wijziging.\")","v":""}]
[null,null,{"$f":"IFERROR(IF(AND(A444<>\"\",B444<>\"\"),AANVRAAG!$B$6-1,\"\"),\"Gelijk aan ingangsdatum wijziging.\")","v":""}]
[null,null,{"$f":"IFERROR(IF(AND(A445<>\"\",B445<>\"\"),AANVRAAG!$B$6-1,\"\"),\"Gelijk aan ingangsdatum wijziging.\")","v":""}]
[null,null,{"$f":"IFERROR(IF(AND(A446<>\"\",B446<>\"\"),AANVRAAG!$B$6-1,\"\"),\"Gelijk aan ingangsdatum wijziging.\")","v":""}]
[null,null,{"$f":"IFERROR(IF(AND(A447<>\"\",B447<>\"\"),AANVRAAG!$B$6-1,\"\"),\"Gelijk aan ingangsdatum wijziging.\")","v":""}]
[null,null,{"$f":"IFERROR(IF(AND(A448<>\"\",B448<>\"\"),AANVRAAG!$B$6-1,\"\"),\"Gelijk aan ingangsdatum wijziging.\")","v":""}]
[null,null,{"$f":"IFERROR(IF(AND(A449<>\"\",B449<>\"\"),AANVRAAG!$B$6-1,\"\"),\"Gelijk aan ingangsdatum wijziging.\")","v":""}]
[null,null,{"$f":"IFERROR(IF(AND(A450<>\"\",B450<>\"\"),AANVRAAG!$B$6-1,\"\"),\"Gelijk aan ingangsdatum wijziging.\")","v":""}]
[null,null,{"$f":"IFERROR(IF(AND(A451<>\"\",B451<>\"\"),AANVRAAG!$B$6-1,\"\"),\"Gelijk aan ingangsdatum wijziging.\")","v":""}]
[null,null,{"$f":"IFERROR(IF(AND(A452<>\"\",B452<>\"\"),AANVRAAG!$B$6-1,\"\"),\"Gelijk aan ingangsdatum wijziging.\")","v":""}]
[null,null,{"$f":"IFERROR(IF(AND(A453<>\"\",B453<>\"\"),AANVRAAG!$B$6-1,\"\"),\"Gelijk aan ingangsdatum wijziging.\")","v":""}]
[null,null,{"$f":"IFERROR(IF(AND(A454<>\"\",B454<>\"\"),AANVRAAG!$B$6-1,\"\"),\"Gelijk aan ingangsdatum wijziging.\")","v":""}]
[null,null,{"$f":"IFERROR(IF(AND(A455<>\"\",B455<>\"\"),AANVRAAG!$B$6-1,\"\"),\"Gelijk aan ingangsdatum wijziging.\")","v":""}]
[null,null,{"$f":"IFERROR(IF(AND(A456<>\"\",B456<>\"\"),AANVRAAG!$B$6-1,\"\"),\"Gelijk aan ingangsdatum wijziging.\")","v":""}]
[null,null,{"$f":"IFERROR(IF(AND(A457<>\"\",B457<>\"\"),AANVRAAG!$B$6-1,\"\"),\"Gelijk aan ingangsdatum wijziging.\")","v":""}]
[null,null,{"$f":"IFERROR(IF(AND(A458<>\"\",B458<>\"\"),AANVRAAG!$B$6-1,\"\"),\"Gelijk aan ingangsdatum wijziging.\")","v":""}]
[null,null,{"$f":"IFERROR(IF(AND(A459<>\"\",B459<>\"\"),AANVRAAG!$B$6-1,\"\"),\"Gelijk aan ingangsdatum wijziging.\")","v":""}]
[null,null,{"$f":"IFERROR(IF(AND(A460<>\"\",B460<>\"\"),AANVRAAG!$B$6-1,\"\"),\"Gelijk aan ingangsdatum wijziging.\")","v":""}]
[null,null,{"$f":"IFERROR(IF(AND(A461<>\"\",B461<>\"\"),AANVRAAG!$B$6-1,\"\"),\"Gelijk aan ingangsdatum wijziging.\")","v":""}]
[null,null,{"$f":"IFERROR(IF(AND(A462<>\"\",B462<>\"\"),AANVRAAG!$B$6-1,\"\"),\"Gelijk aan ingangsdatum wijziging.\")","v":""}]
[null,null,{"$f":"IFERROR(IF(AND(A463<>\"\",B463<>\"\"),AANVRAAG!$B$6-1,\"\"),\"Gelijk aan ingangsdatum wijziging.\")","v":""}]
[null,null,{"$f":"IFERROR(IF(AND(A464<>\"\",B464<>\"\"),AANVRAAG!$B$6-1,\"\"),\"Gelijk aan ingangsdatum wijziging.\")","v":""}]
[null,null,{"$f":"IFERROR(IF(AND(A465<>\"\",B465<>\"\"),AANVRAAG!$B$6-1,\"\"),\"Gelijk aan ingangsdatum wijziging.\")","v":""}]
[null,null,{"$f":"IFERROR(IF(AND(A466<>\"\",B466<>\"\"),AANVRAAG!$B$6-1,\"\"),\"Gelijk aan ingangsdatum wijziging.\")","v":""}]
[null,null,{"$f":"IFERROR(IF(AND(A467<>\"\",B467<>\"\"),AANVRAAG!$B$6-1,\"\"),\"Gelijk aan ingangsdatum wijziging.\")","v":""}]
[null,null,{"$f":"IFERROR(IF(AND(A468<>\"\",B468<>\"\"),AANVRAAG!$B$6-1,\"\"),\"Gelijk aan ingangsdatum wijziging.\")","v":""}]
[null,null,{"$f":"IFERROR(IF(AND(A469<>\"\",B469<>\"\"),AANVRAAG!$B$6-1,\"\"),\"Gelijk aan ingangsdatum wijziging.\")","v":""}]
[null,null,{"$f":"IFERROR(IF(AND(A470<>\"\",B470<>\"\"),AANVRAAG!$B$6-1,\"\"),\"Gelijk aan ingangsdatum wijziging.\")","v":""}]
[null,null,{"$f":"IFERROR(IF(AND(A471<>\"\",B471<>\"\"),AANVRAAG!$B$6-1,\"\"),\"Gelijk aan ingangsdatum wijziging.\")","v":""}]
[null,null,{"$f":"IFERROR(IF(AND(A472<>\"\",B472<>\"\"),AANVRAAG!$B$6-1,\"\"),\"Gelijk aan ingangsdatum wijziging.\")","v":""}]
[null,null,{"$f":"IFERROR(IF(AND(A473<>\"\",B473<>\"\"),AANVRAAG!$B$6-1,\"\"),\"Gelijk aan ingangsdatum wijziging.\")","v":""}]
[null,null,{"$f":"IFERROR(IF(AND(A474<>\"\",B474<>\"\"),AANVRAAG!$B$6-1,\"\"),\"Gelijk aan ingangsdatum wijziging.\")","v":""}]
[null,null,{"$f":"IFERROR(IF(AND(A475<>\"\",B475<>\"\"),AANVRAAG!$B$6-1,\"\"),\"Gelijk aan ingangsdatum wijziging.\")","v":""}]
[null,null,{"$f":"IFERROR(IF(AND(A476<>\"\",B476<>\"\"),AANVRAAG!$B$6-1,\"\"),\"Gelijk aan ingangsdatum wijziging.\")","v":""}]
[null,null,{"$f":"IFERROR(IF(AND(A477<>\"\",B477<>\"\"),AANVRAAG!$B$6-1,\"\"),\"Gelijk aan ingangsdatum wijziging.\")","v":""}]
[null,null,{"$f":"IFERROR(IF(AND(A478<>\"\",B478<>\"\"),AANVRAAG!$B$6-1,\"\"),\"Gelijk aan ingangsdatum wijziging.\")","v":""}]
[null,null,{"$f":"IFERROR(IF(AND(A479<>\"\",B479<>\"\"),AANVRAAG!$B$6-1,\"\"),\"Gelijk aan ingangsdatum wijziging.\")","v":""}]
[null,null,{"$f":"IFERROR(IF(AND(A480<>\"\",B480<>\"\"),AANVRAAG!$B$6-1,\"\"),\"Gelijk aan ingangsdatum wijziging.\")","v":""}]
[null,null,{"$f":"IFERROR(IF(AND(A481<>\"\",B481<>\"\"),AANVRAAG!$B$6-1,\"\"),\"Gelijk aan ingangsdatum wijziging.\")","v":""}]
[null,null,{"$f":"IFERROR(IF(AND(A482<>\"\",B482<>\"\"),AANVRAAG!$B$6-1,\"\"),\"Gelijk aan ingangsdatum wijziging.\")","v":""}]
[null,null,{"$f":"IFERROR(IF(AND(A483<>\"\",B483<>\"\"),AANVRAAG!$B$6-1,\"\"),\"Gelijk aan ingangsdatum wijziging.\")","v":""}]
[null,null,{"$f":"IFERROR(IF(AND(A484<>\"\",B484<>\"\"),AANVRAAG!$B$6-1,\"\"),\"Gelijk aan ingangsdatum wijziging.\")","v":""}]
[null,null,{"$f":"IFERROR(IF(AND(A485<>\"\",B485<>\"\"),AANVRAAG!$B$6-1,\"\"),\"Gelijk aan ingangsdatum wijziging.\")","v":""}]
[null,null,{"$f":"IFERROR(IF(AND(A486<>\"\",B486<>\"\"),AANVRAAG!$B$6-1,\"\"),\"Gelijk aan ingangsdatum wijziging.\")","v":""}]
[null,null,{"$f":"IFERROR(IF(AND(A487<>\"\",B487<>\"\"),AANVRAAG!$B$6-1,\"\"),\"Gelijk aan ingangsdatum wijziging.\")","v":""}]
[null,null,{"$f":"IFERROR(IF(AND(A488<>\"\",B488<>\"\"),AANVRAAG!$B$6-1,\"\"),\"Gelijk aan ingangsdatum wijziging.\")","v":""}]
[null,null,{"$f":"IFERROR(IF(AND(A489<>\"\",B489<>\"\"),AANVRAAG!$B$6-1,\"\"),\"Gelijk aan ingangsdatum wijziging.\")","v":""}]
[null,null,{"$f":"IFERROR(IF(AND(A490<>\"\",B490<>\"\"),AANVRAAG!$B$6-1,\"\"),\"Gelijk aan ingangsdatum wijziging.\")","v":""}]
[null,null,{"$f":"IFERROR(IF(AND(A491<>\"\",B491<>\"\"),AANVRAAG!$B$6-1,\"\"),\"Gelijk aan ingangsdatum wijziging.\")","v":""}]
[null,null,{"$f":"IFERROR(IF(AND(A492<>\"\",B492<>\"\"),AANVRAAG!$B$6-1,\"\"),\"Gelijk aan ingangsdatum wijziging.\")","v":""}]
[null,null,{"$f":"IFERROR(IF(AND(A493<>\"\",B493<>\"\"),AANVRAAG!$B$6-1,\"\"),\"Gelijk aan ingangsdatum wijziging.\")","v":""}]
[null,null,{"$f":"IFERROR(IF(AND(A494<>\"\",B494<>\"\"),AANVRAAG!$B$6-1,\"\"),\"Gelijk aan ingangsdatum wijziging.\")","v":""}]
[null,null,{"$f":"IFERROR(IF(AND(A495<>\"\",B495<>\"\"),AANVRAAG!$B$6-1,\"\"),\"Gelijk aan ingangsdatum wijziging.\")","v":""}]
[null,null,{"$f":"IFERROR(IF(AND(A496<>\"\",B496<>\"\"),AANVRAAG!$B$6-1,\"\"),\"Gelijk aan ingangsdatum wijziging.\")","v":""}]
[null,null,{"$f":"IFERROR(IF(AND(A497<>\"\",B497<>\"\"),AANVRAAG!$B$6-1,\"\"),\"Gelijk aan ingangsdatum wijziging.\")","v":""}]
[null,null,{"$f":"IFERROR(IF(AND(A498<>\"\",B498<>\"\"),AANVRAAG!$B$6-1,\"\"),\"Gelijk aan ingangsdatum wijziging.\")","v":""}]
[null,null,{"$f":"IFERROR(IF(AND(A499<>\"\",B499<>\"\"),AANVRAAG!$B$6-1,\"\"),\"Gelijk aan ingangsdatum wijziging.\")","v":""}]
[null,null,{"$f":"IFERROR(IF(AND(A500<>\"\",B500<>\"\"),AANVRAAG!$B$6-1,\"\"),\"Gelijk aan ingangsdatum wijziging.\")","v":""}]

{"sheet":"BEHEER","index":3,"n_rows":131,"n_cols":27,"rows_kept":131,"cut":false,"hidden":true,"merged":[[99,0,99,3]]}
["Celnaam","Waarde","Tekst","Toelichting",null,null,null,null,null,null,null,null,null,null,null,null,null,null,null,null,null,null,null,null,null,null,"Tabblad beveiligen"]
["Aanvraagformulier","Praktijkmanager Wijk",null,"Dit blok zijn standaardwaarden, maximale tarieven enz.",null,null,null,null,null,null,null,null,null,null,null,null,null,null,null,null,null,null,null,null,null,null,"Tabblad verbergen"]
["Jaar",2024,null,null,null,null,null,null,null,null,null,null,null,null,null,null,null,null,null,null,null,null,null,null,null,null,"B2"]
["Versie"]
["Normpraktijk",2095,{"$f":"TEXT(B5,\"#.##0\")","v":"2.095"}]
["Normuren (max) per week C",2,{"$f":"TEXT(B6,\"#.##0,0\")","v":"2,0"}]
["Maximum tarief per kw C",0.62,{"$f":"TEXT(B7,\"€ #.##0,00\")","v":"€ 0,62"},"maxtarief * uren inzet * normpraktijk / aantal pat. / normuren",{"$f":"#REF!*#REF!*normpraktijk/B11/#REF!","v":{"$error":"#REF!"}}]
["Minimum patiëntenaantal",0,{"$f":"TEXT(B8,\"#.##0\")","v":"0"}]
["Jongste aanvraagdatum","2023-10-01"]
[]
["Aantal patiënten",{"$f":"AANVRAAG!D14","v":0},{"$f":"TEXT(B11,\"#.##0\")","v":"0"},"Deze blokken zijn de berekeningen van het tarief."]
["Aantal normpraktijken",{"$f":"B11/normpraktijk","v":0},{"$f":"TEXT(B12,\"#.##0,00\")","v":"0,00"},"maxtarief * uren inzet / (aantal pat. / normpraktijk * normuren)",{"$f":"#REF!*#REF!/(B11/normpraktijk*#REF!)","v":{"$error":"#REF!"}}]
[]
[]
["Norminzet voor max. tarief C",{"$f":"normpraktijken*B6","v":0},{"$f":"TEXT(B15,\"#.##0,00\")","v":"0,00"}]
["Uren inzet werkelijk C",{"$f":"AANVRAAG!D15","v":0},"0,00"]
["Uren inzet vergoed C",{"$f":"IF(B16>B15,B15,B16)","v":0},"0,00"]
["Percentage vergoeding C",{"$f":"B17/B15","v":{"$error":"#DIV/0!"}},{"$f":"TEXT(B18,\"#.##0%\")","v":{"$error":"#DIV/0!"}}]
["Tarief C",{"$f":"B18*B7","v":{"$error":"#DIV/0!"}},{"$f":"TEXT(B19,\"€ #.##0,00\")","v":{"$error":"#DIV/0!"}}]
[]
["Tarief C",{"$f":"B19","v":{"$error":"#DIV/0!"}},{"$f":"TEXT(B21,\"€ #.##0,00\")","v":{"$error":"#DIV/0!"}}]
["Maximum tarief",{"$f":"B7","v":0.62},{"$f":"TEXT(B22,\"€ #.##0,00\")","v":"€ 0,62"}]
["Kwartaaltarief",{"$f":"IF(B21<B22,B21,B22)","v":{"$error":"#DIV/0!"}},{"$error":"#DIV/0!"}]
[]
["Tarief weergeven",{"$f":"AND(B74,NOT(B75))","v":false},null,"Tarief alleen weergeven, als alles compleet en correct is ingevuld."]
["Toelichtende tekst",{"$f":"IF(B75,\"Er is iets niet juist ingevuld,\nzie de rode cel(len).\",IF(NOT(B74),\"Het formulier is niet volledig ingevuld.\",\"n.v.t.\"))","v":"Het formulier is niet volledig ingevuld."},null,"Dit is de tekst als het tarief niet wordt getoond."]
[]
[]
["DE HIERONDER NIET-BEVEILIGDE CELLEN MOGEN NIET BEVEILIGD WORDEN, WANT DAN KUN JE DE HOKJES OP TABBLAD AANVRAAG NIET AANVINKEN"]
["Toets op volledigheid en juistheid invullen formulier"]
["Is er iets ingevuld in kolom A",{"$f":"IF(C31>1,TRUE)","v":false},{"$f":"COUNTA(DEELNEMERSLIJST!A:A)","v":1}]
["Is er iets ingevuld in kolom B",{"$f":"IF(C32>1,TRUE)","v":false},{"$f":"COUNTA(DEELNEMERSLIJST!B:B)","v":1}]
["Is er iets ingevuld in kolom C",false,{"$f":"COUNTA(DEELNEMERSLIJST!C:C)","v":1}]
["Is er iets ingevuld in kolom D",false,{"$f":"COUNTA(DEELNEMERSLIJST!D:D)","v":1}]
["compleet",{"$f":"AND(B31,B32,B33,B34)","v":false}]
[]
["Datum aanvraag",{"$f":"IF(AANVRAAG!B5<>\"\",TRUE)","v":false}]
[]
["aanvraag praktijkmgr. wijk",false]
["wijziging praktijkmgr. wijk",false]
["aantal aangevinkt",{"$f":"COUNTIF(B39:B40,\"WAAR\")","v":0}]
["cellen kleuren",{"$f":"IF(B41=0,\"geel\",IF(B41>C42,\"rood\",\"nee\"))","v":"geel"},1]
["compleet",{"$f":"IF(B42=\"nee\",TRUE)","v":false}]
["fout",{"$f":"IF(B42=\"rood\",TRUE)","v":false}]
[]
["Betreft C",{"$f":"OR(B39,B40)","v":false}]
[]
["één praktijk",false]
["SWV",true]
["aantal aangevinkt",{"$f":"COUNTIF(B48:B49,\"WAAR\")","v":1}]
["cellen kleuren",{"$f":"IF(B50=0,\"geel\",IF(B50>1,\"rood\",\"nee\"))","v":"nee"}]
["compleet",{"$f":"IF(B51=\"nee\",TRUE)","v":true}]
["fout",{"$f":"IF(B51=\"rood\",TRUE)","v":false}]
[]
["Naam aanvragend",true]
["AGB-code",true]
[{"$f":"LEFT(AANVRAAG!A10,15)","v":"Naam contactper"},{"$f":"AANVRAAG!B10<>\"\"","v":false}]
[{"$f":"LEFT(AANVRAAG!A11,15)","v":"Telefoon contac"},{"$f":"AANVRAAG!B11<>\"\"","v":false}]
[{"$f":"LEFT(AANVRAAG!A12,15)","v":"E-mail contactp"},{"$f":"AANVRAAG!B12<>\"\"","v":false}]
["aantal ingevuld",{"$f":"COUNTIF(B55:B59,TRUE)","v":2}]
["cel kleuren",{"$f":"IF(B60<5,\"geel\",\"nee\")","v":"geel"}]
["compleet",{"$f":"AND(B55:B59)","v":false}]
["fout",{"$f":"IF(B61=\"rood\",TRUE)","v":false}]
[]
[{"$f":"AANVRAAG!A14","v":"Totaal aantal patiënten (ION)"},{"$f":"AANVRAAG!D14>0","v":false},{"$f":"B65","v":false}]
["aantal uur inzet C",{"$f":"OR(AANVRAAG!D15>0,NOT(OR(B39,B40)))","v":true},{"$f":"B66","v":true}]
["verklaar eisen C",false,{"$f":"OR(B67,NOT(B46))","v":true}]
["waarheid",false,false]
["voorwaarden",false,false]
["compleet",null,{"$f":"AND(C65:C69)","v":false}]
[]
[{"$f":"CONCATENATE(\"minder dan \",C8,\" uur\")","v":"minder dan 0 uur"},{"$f":"AND(AANVRAAG!D14<B8,B35)","v":false}]
[]
["alles ingevuld",{"$f":"AND(B35,B43,B52,B62,C70)","v":false}]
["is er iets incorrect",{"$f":"OR(B44,B53,B63,B72)","v":false}]
[]
[]
[]
[]
[]
[]
[]
[]
[]
[]
[]
[]
["Is er iets ingevuld in kolom A",{"$f":"IF(C88>1,TRUE)","v":false},{"$f":"COUNTA('GESTOPTE PRAKTIJKEN'!A:A)","v":1}]
["Is er iets ingevuld in kolom B",{"$f":"IF(C89>1,TRUE)","v":false},{"$f":"COUNTA('GESTOPTE PRAKTIJKEN'!B:B)","v":1}]
["compleet",{"$f":"AND(B88,B89)","v":false},null,"Dit betreft tabblad GESTOPTE PRAKTIJKEN"]
[]
["Gestopte praktijken JA",false]
["Gestopte praktijken NEE",false]
[]
["Hieronder staan samenvoegingen t.b.v. begeleidende tekst in het tabblad AANVRAAG bij SWV of ZG."]
[{"$f":"CONCATENATE(\"Het maximum tarief (\",C7,\") wordt vergoed bij de norminzet (\",C6,\" uur per week) per normpraktijk (\",C5,\" patiënten).\")","v":"Het maximum tarief (€ 0,62) wordt vergoed bij de norminzet (2,0 uur per week) per normpraktijk (2.095 patiënten)."}]
["Kwartaaltarief = maximum tarief * inzet uren / norminzet * normpraktijk / totaal aantal patiënten ION"]
[{"$f":"CONCATENATE(\"Kwartaaltarief = \",C7,\" x \",C17,\"/\",C6,\" x \",C5,\"/\",C11,\" = \",C19)","v":{"$error":"#DIV/0!"}}]
[{"$f":"IF(B16>B15,CONCATENATE(\"U zet \",C16,\" uur in. Voor het maximum tarief is \",C15,\" uur nodig, daarom is met \",C15,\" uur gerekend.\"),\"\")","v":""}]
[{"$f":"CONCATENATE(\"\",\"\n\",A96,\"\n\",A97,\"\n\",\nIF(A98=\"\",\"\",CONCATENATE(A98,\"\n\")),\nIF(A99=\"\",\"\",CONCATENATE(A99,\"\n\")),\n\"\")","v":{"$error":"#DIV/0!"}},null,null,null,"1\n2\n3\n4\n5\n6\n7\n8\n9\n0\n1"]
[]
["berekening start kwartaal","huidig kwartaal","volgend kwartaal"]
["aanvraagdatum",{"$f":"AANVRAAG!B5","v":"00:00:00"}]
["maand",{"$f":"MONTH(B103)","v":1}]
["jaar",{"$f":"YEAR(B103)","v":1900},{"$f":"IF(C106=1,B105+1,B105)","v":1900}]
["eerste maand van kwartaal",{"$f":"VLOOKUP(B104,A109:B120,2,FALSE)","v":1},{"$f":"VLOOKUP(B104,A109:C120,3,FALSE)","v":4}]
["dag",1,1]
["start kwartaal",{"$f":"IF(OR(B103=\"\",B103=0),\"\",DATE(B105,B106,B107))","v":""},{"$f":"IF(OR(B103=\"\",B103=0),\"\",DATE(C105,C106,C107))","v":""}]
[1,1,4]
[2,1,4]
[3,1,4]
[4,4,7]
[5,4,7]
[6,4,7]
[7,7,10]
[8,7,10]
[9,7,10]
[10,10,1]
[11,10,1]
[12,10,1]
[]
[]
[]
["Beveiligingstrucs"]
["ctrl + shift + B = complete beveiliging inschakelen en dan gebeurd het volgende:"]
["Als in cel AA1 \"Tabblad beveiliging\" staat, dan wordt dat tabblad beveiligd."]
["Als in cel AA2 \"Tabblad verbergen\" staat, dan wordt dat tabblad verborgen."]
["Als in cel AA3 een celverwijzing staat, bijvoorbeeld B2, dan staat de cursor de volgende keer op die cel."]
["Als cel AA3 leeg is, dan staat de cursor volgende keer op cel A1."]
["ctrl + shift + O = complete beveiliging opheffen"]
["Bovenstaande geldt voor alle tabbladen."]